Workbook

Sheet Instructions
B1: Energy Related Emissions Associated With Water Supply, Delivery, and Treatment
B2: Introduction
B3: The consumption of water by a community's residents and businesses can have a significant Green House Gas (GHG) implications depending on the source, treatment, distance, and topography traversed. Incorporating the relationship between water and energy consumption in a GHG inventory allows a community to use water conservation and policy measures as a GHG emissions reduction strategy. This tool allows the user to estimate GHG emissions from 1990-2050 regardless of data availability. The tool can be used with 3 levels of data: Required Data, Suggested Data, and Detailed Data or any combination of the 3. Yellow cells in each worksheet can take user input, blue cells are calculated values, and tan cells provide detailed instructions.
B11: Required Data | D11: Detailed Data
B12: Population of the area being analyzed for 1990, 2000, 2010, and present. | D12: Detailed site specific data should be used when it is available, but default date will fill any data gaps. The following detailed data can be entered on either a monthly or annual level under the blue tabs. • State Water Project data (ac-ft) • Colorado River Water data (ac-ft) • Potable water treatment flow (gal for monthly data, MG for annual) • Potable water treatment energy data (KWh) • Groundwater elevation data (ft) • Groundwater energy data (KWh)
B15: Suggested Data
B16: The more site specific data input into the tool, the more accurate the results. The following list of data can be input into the model under the yellow tabs. • Projected population data for 2020, 2030, 2040, and 2050 • Water use per capita for 1990, 2000, 2010, present, 2020, 2030, 2040, and 2050 • Percentage each of groundwater, State Water Project, Colorado River Water, and self supplied water

Sheet Population
B1: 1990 Population: | L1: Instructions
B2: 2000 Population: | L2: Step 1: | M2: Population data for 1990, 2000, 2010, and present must be entered. This data can be found at: http://www.census.gov/main/www/cen2000.html
B3: 2010 Population:
B4: Current Population:
B6: Known Population | L6: Step 2: | M6: If know, please enter the projected population for 2020, 2030, 2040, and 2050. If not know, please leave blank.
C7: 1990 | D7: 2000 | E7: 2010 | F7: 2020 | G7: 2030 | H7: 2040 | I7: 2050
B8: Population | C8: =F1 -> 0 | D8: 2846289 | E8: =F3 -> 0
B9: Decadal Growth Rate | D9: =((D8-C8)/C8) ->  | E9: =((E8-D8)/D8) -> -1 | F9: =IF(ISNUMBER(F8),((F8-E8)/E8),0) -> 0 | G9: =IF(ISNUMBER(G8),((G8-F8)/F8),0) -> 0 | H9: 0 | I9: 0
B10: Annual Growth Rate | D10: =((D8-C8)/C8)/10 ->  | E10: =((E8-D8)/D8)/10 -> -0.1 | F10: =IF(ISNUMBER(F8),((F8-E8)/E8)/10,0) -> 0 | G10: =IF(ISNUMBER(G8),((G8-F8)/F8)/10,0) -> 0 | H10: 0 | I10: 0 | L10: Step 3: | M10: If know, please enter the decadal growth rates (growth rate over full decade) for 2010-2020, 2020-2030, and 2040-2050. If not know, please leave blank.
B11: Source:
B13: Known Decadal Growth Rate
C14: 1990 | D14: 2000 | E14: 2010 | F14: 2020 | G14: 2030 | H14: 2040 | I14: 2050 | L14: Step 4: | M14: If know, please enter the average annual growth rates (average during each 10 year period) for 2010-2020, 2020-2030, and 2040-2050. If not know, please leave blank.
B15: Population | C15: =F1 -> 0 | D15: =F2 -> 0 | E15: =F3 -> 0 | F15: =F16*E15+E15 -> 0 | G15: =G16*F15+F15 -> 0 | H15: =H16*G15+G15 -> 0 | I15: =I16*H15+H15 -> 0
B16: Decadal Growth Rate | D16: =((D15-C15)/C15) ->  | E16: =((E15-D15)/D15) -> 
B17: Annual Growth Rate | D17: =((D15-C15)/C15)/10 ->  | E17: =((E15-D15)/D15)/10 ->  | F17: =((F15-E15)/E15)/10 -> 
B18: Source:
L19: Notes: | M19: Please complete only one of steps 2-4, leaving the other two blank. If the data is unknown for steps 2, 3, or 4 the default Southern California rate will be used. Source data can be inserted at any step for future reference.
B20: Known Average Annual Growth Rate
C21: 1990 | D21: 2000 | E21: 2010 | F21: 2020 | G21: 2030 | H21: 2040 | I21: 2050
B22: Population | C22: =F1 -> 0 | D22: =F2 -> 0 | E22: =F3 -> 0 | F22: =10*F24*E22+E22 -> 0 | G22: =10*G24*F22+F22 -> 0 | H22: =10*H24*G22+G22 -> 0 | I22: =10*I24*H22+H22 -> 0
B23: Decadal Growth Rate | D23: =(D22-C22)/C22 ->  | E23: =(E22-D22)/D22 -> 
B24: Annual Growth Rate | D24: =((D22-C22)/C22)/10 ->  | E24: =((E22-D22)/D22)/10 -> 
B25: Source:
B27: Default Projected Growth for So Cal from 1010-2050: | G27: 0.617
C28: 1990 | D28: 2000 | E28: 2010 | F28: 2020 | G28: 2030 | H28: 2040 | I28: 2050
B29: Population | C29: =F1 -> 0 | D29: =F2 -> 0 | E29: =F3 -> 0 | F29: =$E$29+($I$29-$E$29)*((F28-$E$28)/($I$28-$E$28)) -> 0 | G29: =$E$29+($I$29-$E$29)*((G28-$E$28)/($I$28-$E$28)) -> 0 | H29: 0 | I29: =E29*G27+E29 -> 0
B37: Actual Data Perpetuated
C38: 1990 | D38: 2000 | E38: 2010 | F38: Current | G38: 2020 | H38: 2030 | I38: 2040 | J38: 2050
B39: Population | C39: =F1 -> 0 | D39: =F2 -> 0 | E39: =F3 -> 0 | F39: =F4 -> 0 | G39: =IF(ISBLANK(F8),IF(ISBLANK(F16),IF(ISBLANK(F24),F29,F22),F15),F8) -> 0 | H39: =IF(ISBLANK(G8),IF(ISBLANK(G16),IF(ISBLANK(G24),G29,G22),G15),G8) -> 0 | I39: 0 | J39: 0
B79: Source | C79: Orange County DOT Economic Forecast

Sheet Water Use Per Capita
B2: Current Per Capita Water Use (gpd): | L2: Instructions
B3: 1990 Per Capita Water Use: | L3: Step 1: | M3: If current, 1990, 2000, and 2010 per capita water use is know, enter here. If only current per capita water use is know, enter it leaving the others blank. If none are know the default value will be used.
B4: 2000 Per Capita Water Use:
B5: 2010 Per Capita Water Use:
B7: Projected Per Capita Water Use | L7: Step 2: | M7: If projected per capita water use data is known please enter it here, if not please leave blank.
C8: 1990 | D8: 2000 | E8: 2010 | F8: 2020 | G8: 2030 | H8: 2040 | I8: 2050
B9: Per Capita Water Use (gpd) | C9: =IF(ISBLANK(F3),IF(ISBLANK(F2),G28,F2),F3) -> 209 | D9: =IF(ISBLANK(F4),IF(ISBLANK(F2),G28,F2),F4) -> 209 | E9: =IF(ISBLANK(F5),IF(ISBLANK(F2),G28,F2),F5) -> 209
B10: Decadal Conservation Rate | D10: =((D9-C9)/C9) -> 0 | E10: =((E9-D9)/D9) -> 0 | F10: =IF(ISBLANK(F9),0,((F9-E9)/E9)) -> 0 | G10: =IF(ISBLANK(G9),0,((G9-F9)/F9)) -> 0 | H10: =IF(ISBLANK(H9),0,((H9-G9)/G9)) -> 0 | I10: 0 | L10: Step 3: | M10: If you would like to evaluate a reduction percentage over each 10 year period please enter them here.
B11: Annual Conservation Rate | D11: =((D9-C9)/C9)/10 -> 0 | E11: =((E9-D9)/D9)/10 -> 0 | F11: =IF(ISBLANK(F9),0,(((F9-E9)/E9)/10)) -> 0 | G11: =IF(ISBLANK(G9),0,(((G9-F9)/F9)/10)) -> 0 | H11: 0 | I11: 0
B12: Source:
B14: Projected Annual Conservation Rate | L14: Step 4: | M14: If you would like to evaluate a average annual reduction percentage over each 10 year period please enter them here.
C15: 1990 | D15: 2000 | E15: 2010 | F15: 2020 | G15: 2030 | H15: 2040 | I15: 2050
B16: Per Capita Water Use (gpd) | C16: =C9 -> 209 | D16: =D9 -> 209 | E16: 209 | F16: =F17*E16+E16 -> 209 | G16: =G17*F16+F16 -> 209 | H16: =H17*G16+G16 -> 209 | I16: =I17*H16+H16 -> 209
B17: Decadal Conservation Rate | D17: =((D16-C16)/C16) -> 0 | E17: =((E16-D16)/D16) -> 0
B18: Annual Conservation Rate | D18: =((D16-C16)/C16)/10 -> 0 | E18: =((E16-D16)/D16)/10 -> 0 | F18: =((F16-E16)/E16)/10 -> 0 | G18: 0 | H18: 0 | I18: 0 | L18: Notes: | M18: Please complete only one of steps 2-4 at a time, leaving the other two blank. Source data can be inserted at any step for future reference.
B19: Source:
B21: Projected Annual Conservation Rate
C22: 1990 | D22: 2000 | E22: 2010 | F22: 2020 | G22: 2030 | H22: 2040 | I22: 2050
B23: Per Capita Water Use (gpd) | C23: =C9 -> 209 | D23: =D9 -> 209 | E23: 209 | F23: =10*F25*E23+E23 -> 209 | G23: =10*G25*F23+F23 -> 209 | H23: =10*H25*G23+G23 -> 209 | I23: =10*I25*H23+H23 -> 209
B24: Decadal Conservation Rate | D24: =(D23-C23)/C23 -> 0 | E24: =(E23-D23)/D23 -> 0 | F24: 0 | G24: 0 | H24: 0 | I24: 0
B25: Annual Conservation Rate | D25: =((D23-C23)/C23)/10 -> 0 | E25: =((E23-D23)/D23)/10 -> 0
B26: Source:
B28: Default per capita water use for So Cal: | G28: 209
B38: Actual Data Perpetuated
C39: 1990 | D39: 2000 | E39: 2010 | F39: Current | G39: 2020 | H39: 2030 | I39: 2040 | J39: 2050
B40: Population | C40: =C9 -> 209 | D40: =D9 -> 209 | E40: 209 | F40: =IF(ISBLANK(F2),IF(ISBLANK(F5),G28,F5),F2) -> 209 | G40: =IF(ISBLANK(F9),IF(ISBLANK(F17),IF(ISBLANK(F25),IF(ISBLANK($F$2),IF(ISBLANK($F$5),$G$28,$F$5),$F$2),F23),F16),F9) -> 209 | H40: =MIN((IF(ISBLANK(G9),IF(ISBLANK(G17),IF(ISBLANK(G25),IF(ISBLANK($F$2),IF(ISBLANK($F$5),$G$28,$F$5),$F$2),G23),G16),G9)),G40) -> 209 | I40: =MIN((IF(ISBLANK(H9),IF(ISBLANK(H17),IF(ISBLANK(H25),IF(ISBLANK($F$2),IF(ISBLANK($F$5),$G$28,$F$5),$F$2),H23),H16),H9)),H40) -> 209 | J40: 209
B79: Source | C79: Orange County DOT Economic Forecast

Sheet Water Supply
B2: Percent Groundwater Use: | K2: Instructions
B3: Percent State Water Project: | K3: Step 1: | L3: If percentage of water use for the area is know for groundwater, State Water Project, and Colorado River Water, please enter here.
B4: Percent Colorado River Water:
B5: Percent Self-Supplied Water Use: | F5: =IF(ISBLANK(F2),G29,1-F2-F3-F4) -> 0.07
B7: Groundwater | K7: Step 2: | L7: If annual groundwater use data is known please enter it here, if not please leave blank.
C8: 1990 | D8: 2000 | E8: 2010 | F8: 2020 | G8: 2030 | H8: 2040 | I8: 2050
B9: Groundwater Production (ac-ft) | F9: =IF(ISBLANK(C11),IF(ISBLANK($F$2),$G$27*F25,$F$2*F25),F10*F25) -> 0 | G9: =IF(ISBLANK(D11),IF(ISBLANK($F$2),$G$27*G25,$F$2*G25),G10*G25) -> 0 | H9: 0 | I9: 0
B10: Percentage of water supplied | C10: =IF(ISBLANK(C9),IF(ISBLANK($F$2),$G$27,$F$2),(C9/C25)) -> 0.17 | D10: =IF(ISBLANK(D9),IF(ISBLANK($F$2),$G$27,$F$2),(D9/D25)) -> 0.17 | E10: 0.17 | K10: Step 3: | L10: If annual State Water Project data is known please enter it here, if not please leave blank.
B11: Source:
B13: State Water Project | K13: Step 4: | L13: If annual Colorado River Water use data is known please enter it here, if not please leave blank.
C14: 1990 | D14: 2000 | E14: 2010 | F14: 2020 | G14: 2030 | H14: 2040 | I14: 2050
B15: Imported Water (ac-ft) | F15: =IF(ISBLANK(C11),IF(ISBLANK($F$3),$G$28*F25,$F$3*F25),F16*F25) -> 0 | G15: =IF(ISBLANK(D11),IF(ISBLANK($F$3),$G$28*G25,$F$3*G25),G16*G25) -> 0 | H15: 0 | I15: 0
B16: Percentage of water supplied | C16: =IF(ISBLANK(C15),IF(ISBLANK($F$3),$G$28/2,$F$3),(C15/C25)) -> 0.38 | D16: =IF(ISBLANK(D15),IF(ISBLANK($F$3),$G$28/2,$F$3),(D15/D25)) -> 0.38 | E16: 0.38
B17: Source: | K17: Notes: | L17: You can run future projection scenarios by entering projected percentages for years 2020, 2030,2040, and 2050. Source data can be inserted at any step for future reference.
B19: Colorado River Water
C20: 1990 | D20: 2000 | E20: 2010 | F20: 2020 | G20: 2030 | H20: 2040 | I20: 2050
B21: Imported Water (ac-ft) | F21: =F22*E21+E21 -> 0 | G21: =G22*F21+F21 -> 0 | H21: 0 | I21: 0
B22: Percentage of water supplied | C22: =IF(ISBLANK(C21),IF(ISBLANK($F$4),$G$28/2,$F$4),(C21/C25)) -> 0.38 | D22: =IF(ISBLANK(D21),IF(ISBLANK($F$4),$G$28/2,$F$4),(D21/D25)) -> 0.38 | E22: 0.38
B23: Source:
B25: Total Water Use (ac-ft) | C25: =(Population!C39*'Water Use Per Capita'!C40*365)/325851.427 -> 0 | D25: =(Population!D39*'Water Use Per Capita'!D40*365)/325851.427 -> 0 | E25: =(Population!E39*'Water Use Per Capita'!E40*365)/325851.427 -> 0 | F25: =(Population!F39*'Water Use Per Capita'!F40*365)/325851.427 -> 0 | G25: =(Population!G39*'Water Use Per Capita'!G40*365)/325851.427 -> 0 | H25: =(Population!H39*'Water Use Per Capita'!H40*365)/325851.427 -> 0 | I25: =(Population!I39*'Water Use Per Capita'!I40*365)/325851.427 -> 0
B27: Default groundwater use for So Cal: | G27: 0.17
B28: Default surface water use for So Cal: | G28: 0.76
B29: Default self-supplied water use for So Cal: | G29: 0.07
B38: Actual Data Perpetuated
C39: 1990 | D39: 2000 | E39: 2010 | F39: Current | G39: 2020 | H39: 2030 | I39: 2040 | J39: 2050
B40: Groundwater | C40: =IF(ISBLANK(C10),IF(ISBLANK($F$2),$G$27,$F$2),C10) -> 0.17 | D40: =IF(ISBLANK(D10),IF(ISBLANK($F$2),$G$27,$F$2),D10) -> 0.17 | E40: 0.17 | F40: =IF(ISBLANK(F2),G27,F2) -> 0.17 | G40: =IF(ISBLANK(F10),IF(ISBLANK($F$2),$G$27,$F$2),F10) -> 0.17 | H40: =IF(ISBLANK(G10),IF(ISBLANK($F$2),$G$27,$F$2),G10) -> 0.17 | I40: =IF(ISBLANK(H10),IF(ISBLANK($F$2),$G$27,$F$2),H10) -> 0.17 | J40: =IF(ISBLANK(I10),IF(ISBLANK($F$2),$G$27,$F$2),I10) -> 0.17
B41: Surface water | C41: =IF(ISBLANK(C15),IF(ISBLANK($F$3),$G$28,$F$3+$F$4),C16+C22) -> 0.76 | D41: =IF(ISBLANK(D15),IF(ISBLANK($F$3),$G$28,$F$3+$F$4),D16+D22) -> 0.76 | E41: 0.76 | F41: =IF(ISBLANK(F3),G28,F3+F4) -> 0.76 | G41: =IF(ISBLANK(F16),IF(ISBLANK($F$3),$G$28,$F$3+$F$4),F16+F22) -> 0.76 | H41: =IF(ISBLANK(G16),IF(ISBLANK($F$3),$G$28,$F$3+$F$4),G16+G22) -> 0.76 | I41: 0.76 | J41: 0.76
B42: Self-supplied water | C42: =$F$5 -> 0.07 | D42: =$F$5 -> 0.07 | E42: 0.07 | F42: =F5 -> 0.07 | G42: 0.07 | H42: 0.07 | I42: 0.07 | J42: 0.07
B78: Source | C78: Orange County DOT Economic Forecast

Sheet Potable Water Treatment
B2: Current Average Daily Flow to Treatment Plant (MGD): | K2: Instructions
B3: 1990 Average Daily Flow to Treatment Plant (MGD): | K3: Step 1: | L3: If current, 1990, 2000, and 2010 flow to treatment plant is know enter here. If only current is know, enter it leaving the other blank. If none are know the default Southern California default will be used.
B4: 2000 Average Daily Flow to Treatment Plant (MGD):
B5: 2010 Average Daily Flow to Treatment Plant (MGD):
B7: Projected Per Capita Water Use | K7: Step 2: | L7: If projected per capita water use data is known please enter it here, if not please leave blank.
C8: 1990 | D8: 2000 | E8: 2010 | F8: 2020 | G8: 2030 | H8: 2040 | I8: 2050
B9: Avg Daily Flow to Plant (MGD): | C9: =IF(ISBLANK(F2),G28,(IF(ISBLANK(F3),F2,F3))) -> 20 | D9: =IF(ISBLANK(F2),G28,(IF(ISBLANK(F4),F2,F4))) -> 20 | E9: =IF(ISBLANK(F2),G28,(IF(ISBLANK(F5),F2,F5))) -> 20
B10: Decadal Growth Rate | D10: =((D9-C9)/C9) -> 0 | E10: =((E9-D9)/D9) -> 0 | F10: =IF(ISBLANK(F9),0,((F9-E9)/E9)) -> 0 | G10: =IF(ISBLANK(G9),0,((G9-F9)/F9)) -> 0 | H10: =IF(ISBLANK(H9),0,((H9-G9)/G9)) -> 0 | I10: 0 | K10: Step 3: | L10: If you would like to evaluate a reduction percentage over each 10 year period please enter them here.
B11: Annual Growth Rate | D11: =((D9-C9)/C9)/10 -> 0 | E11: =((E9-D9)/D9)/10 -> 0 | F11: =IF(ISBLANK(F9),0,(((F9-E9)/E9)/10)) -> 0 | G11: =IF(ISBLANK(G9),0,(((G9-F9)/F9)/10)) -> 0 | H11: 0 | I11: 0
B12: Source:
B14: Projected Annual Conservation Rate | K14: Step 4: | L14: If you would like to evaluate a average annual reduction percentage over each 10 year period please enter them here.
C15: 1990 | D15: 2000 | E15: 2010 | F15: 2020 | G15: 2030 | H15: 2040 | I15: 2050
B16: Avg Daily Flow to Plant (MGD): | C16: =IF(ISBLANK(F2),G28,(IF(ISBLANK(F3),F2,F3))) -> 20 | D16: =IF(ISBLANK(F2),G28,(IF(ISBLANK(F4),F2,F4))) -> 20 | E16: =IF(ISBLANK(F2),G28,(IF(ISBLANK(F5),F2,F5))) -> 20 | F16: =F17*E16+E16 -> 20 | G16: =G17*F16+F16 -> 20 | H16: =H17*G16+G16 -> 20 | I16: =I17*H16+H16 -> 20
B17: Decadal Growth Rate | D17: =((D16-C16)/C16) -> 0 | E17: =((E16-D16)/D16) -> 0
B18: Annual Growth Rate | D18: =((D16-C16)/C16)/10 -> 0 | E18: =((E16-D16)/D16)/10 -> 0 | F18: =((F16-E16)/E16)/10 -> 0 | G18: 0 | H18: 0 | I18: 0 | K18: Notes: | L18: Please complete only one of steps 2-4 at a time, leaving the other two blank. Source data can be inserted at any step for future reference.
B19: Source:
B21: Projected Annual Conservation Rate
C22: 1990 | D22: 2000 | E22: 2010 | F22: 2020 | G22: 2030 | H22: 2040 | I22: 2050
B23: Avg Daily Flow to Plant (MGD): | C23: =IF(ISBLANK(F2),G28,(IF(ISBLANK(F3),F2,F3))) -> 20 | D23: =IF(ISBLANK(F2),G28,(IF(ISBLANK(F4),F2,F4))) -> 20 | E23: =IF(ISBLANK(F2),G28,(IF(ISBLANK(F5),F2,F5))) -> 20 | F23: =10*F25*E23+E23 -> 20 | G23: =10*G25*F23+F23 -> 20 | H23: =10*H25*G23+G23 -> 20 | I23: =10*I25*H23+H23 -> 20
B24: Decadal Growth Rate | D24: =(D23-C23)/C23 -> 0 | E24: =(E23-D23)/D23 -> 0 | F24: 0 | G24: 0 | H24: 0 | I24: 0
B25: Annual Growth Rate | D25: =((D23-C23)/C23)/10 -> 0 | E25: =((E23-D23)/D23)/10 -> 0
B26: Source:
B28: Default Average Daily Flow to Treatment Plant (MGD): | G28: 20
B38: Acctual Data Perpetuated
C39: 1990 | D39: 2000 | E39: 2010 | F39: Current | G39: 2020 | H39: 2030 | I39: 2040 | J39: 2050
B40: Population | C40: =IF(ISBLANK(F2),G28,(IF(ISBLANK(F3),F2,F3))) -> 20 | D40: =IF(ISBLANK(F2),G28,(IF(ISBLANK(F4),F2,F4))) -> 20 | E40: =IF(ISBLANK(F2),G28,(IF(ISBLANK(F5),F2,F5))) -> 20 | F40: =IF(ISBLANK(F2),G28,F2) -> 20 | G40: =IF(ISBLANK(F9),IF(ISBLANK(F17),IF(ISBLANK(F25),IF(ISBLANK($F$2),$G$28,$F$2),F23),F16),F9) -> 20 | H40: =IF(ISBLANK(G9),IF(ISBLANK(G17),IF(ISBLANK(G25),IF(ISBLANK($F$2),$G$28,$F$2),G23),G16),G9) -> 20 | I40: =MIN((IF(ISBLANK(H9),IF(ISBLANK(H17),IF(ISBLANK(H25),IF(ISBLANK($F$2),$G$28,$F$2),H23),H16),H9)),H40) -> 20 | J40: 20
B78: Source | C78: Orange County DOT Economic Forecast

Sheet Results
A2: Final Values for Computation of Total Annual Emissions
B3: Groundwater (gpd) | C3: Surface Water (gpd) | D3: Groundwater Intensity (KWh/MG) | E3: Supply & Conveyance Intensity (KWh/MG) | F3: Treatment Intensity (KWh/MG) | G3: Distribution Intensity (KWh/MG) | H3: Electricity Emission Factors (kg CO2 eq./MWh) | I3: Annual Groundwater Extraction Emissions (mtCO2e) | J3: Annual Conveyance Emissions (mtCO2e) | K3: Annual Treatment Emissions (mtCO2e) | L3: Annual Distribution Emissions (mtCO2e) | M3: Total Annual Emissions (mtCO2e)
A4: 1990 | B4: =Population!C39*'Water Use Per Capita'!C40*'Water Supply'!C40 -> 0 | C4: =Population!C39*'Water Use Per Capita'!C40*'Water Supply'!C41 -> 0 | D4: =IF('E for Groundwater Data'!Q3=0,'Default Energy Data'!$E$4,'E for Groundwater Data'!Q3) -> 540 | E4: ='Default Energy Data'!$K$4 -> 8900 | F4: =IF('E for Treatment Data'!Q3=0,IF('E for Treatment Data'!P29=0,'Default Energy Data'!$K$5,'E for Treatment Data'!P29),'E for Treatment Data'!Q3) -> 496.3023484 | G4: ='Default Energy Data'!$K$6 -> 1200 | H4: ='Default Energy Data'!F24/2.205 -> 469.9274376 | I4: =B4*365*0.000001*D4*H4*0.001*0.001 -> 0 | J4: =C4*365*0.000001*E4*H4*0.001*0.001 -> 0 | K4: =(B4+C4)*365*0.000001*F4*H4*0.001*0.001 -> 0 | L4: =(B4+C4)*365*0.000001*G4*H4*0.001*0.001 -> 0 | M4: =SUM(I4:L4) -> 0
A5: 2000 | B5: =Population!D39*'Water Use Per Capita'!D40*'Water Supply'!D40 -> 0 | C5: =Population!D39*'Water Use Per Capita'!D40*'Water Supply'!D41 -> 0 | D5: =IF('E for Groundwater Data'!Q4=0,'Default Energy Data'!$E$4,'E for Groundwater Data'!Q4) -> 540 | E5: ='Default Energy Data'!$K$4 -> 8900 | F5: =IF('E for Treatment Data'!Q13=0,IF('E for Treatment Data'!P30=0,'Default Energy Data'!$K$5,'E for Treatment Data'!P30),'E for Treatment Data'!Q13) -> 496.3023484 | G5: ='Default Energy Data'!$K$6 -> 1200 | H5: ='Default Energy Data'!F34/2.205 -> 380.8707483 | I5: =B5*365*0.000001*D5*H5*0.001*0.001 -> 0 | J5: =C5*365*0.000001*E5*H5*0.001*0.001 -> 0 | K5: =(B5+C5)*365*0.000001*F5*H5*0.001*0.001 -> 0 | L5: =(B5+C5)*365*0.000001*G5*H5*0.001*0.001 -> 0 | M5: =SUM(I5:L5) -> 0
A6: 2010 | B6: =Population!E39*'Water Use Per Capita'!E40*'Water Supply'!E40 -> 0 | C6: =Population!E39*'Water Use Per Capita'!E40*'Water Supply'!E41 -> 0 | D6: =IF('E for Groundwater Data'!Q5=0,'Default Energy Data'!$E$4,'E for Groundwater Data'!Q5) -> 540 | E6: ='Default Energy Data'!$K$4 -> 8900 | F6: =IF('E for Treatment Data'!Q23=0,IF('E for Treatment Data'!P31=0,'Default Energy Data'!$K$5,'E for Treatment Data'!P31),'E for Treatment Data'!Q23) -> 496.3023484 | G6: ='Default Energy Data'!$K$6 -> 1200 | H6: ='Default Energy Data'!F41/2.205 -> 418.7120181 | I6: 0 | J6: 0 | K6: 0 | L6: 0 | M6: 0
A7: Current | B7: =Population!F39*'Water Use Per Capita'!F40*'Water Supply'!F40 -> 0 | C7: =Population!F39*'Water Use Per Capita'!F40*'Water Supply'!F41 -> 0 | D7: =IF('E for Groundwater Data'!Q6=0,'Default Energy Data'!$E$4,'E for Groundwater Data'!Q6) -> 540 | E7: ='Default Energy Data'!$K$4 -> 8900 | F7: =IF('E for Treatment Data'!Q25=0,IF('E for Treatment Data'!P31=0,'Default Energy Data'!$K$5,'E for Treatment Data'!P31),'E for Treatment Data'!Q25) -> 496.3023484 | G7: ='Default Energy Data'!$K$6 -> 1200 | H7: ='Default Energy Data'!F41/2.205 -> 418.7120181 | I7: 0 | J7: 0 | K7: 0 | L7: 0 | M7: 0
A8: 2020 | B8: =Population!G39*'Water Use Per Capita'!G40*'Water Supply'!G40 -> 0 | C8: =Population!G39*'Water Use Per Capita'!G40*'Water Supply'!G41 -> 0 | D8: =IF('E for Groundwater Data'!Q7=0,'Default Energy Data'!$E$4,'E for Groundwater Data'!Q7) -> 540 | E8: ='Default Energy Data'!$K$4 -> 8900 | F8: =IF('E for Treatment Data'!P32=0,'Default Energy Data'!$K$5,'E for Treatment Data'!P32) -> 496.3023484 | G8: ='Default Energy Data'!$K$6 -> 1200 | H8: ='Default Energy Data'!F41/2.205 -> 418.7120181 | I8: 0 | J8: 0 | K8: 0 | L8: 0 | M8: 0
A9: 2030 | B9: =Population!H39*'Water Use Per Capita'!H40*'Water Supply'!H40 -> 0 | C9: =Population!H39*'Water Use Per Capita'!H40*'Water Supply'!H41 -> 0 | D9: =IF('E for Groundwater Data'!Q8=0,'Default Energy Data'!$E$4,'E for Groundwater Data'!Q8) -> 540 | E9: ='Default Energy Data'!$K$4 -> 8900 | F9: =IF('E for Treatment Data'!P33=0,'Default Energy Data'!$K$5,'E for Treatment Data'!P33) -> 496.3023484 | G9: ='Default Energy Data'!$K$6 -> 1200 | H9: ='Default Energy Data'!F41/2.205 -> 418.7120181 | I9: 0 | J9: 0 | K9: 0 | L9: 0 | M9: 0
A10: 2040 | B10: =Population!I39*'Water Use Per Capita'!I40*'Water Supply'!I40 -> 0 | C10: =Population!I39*'Water Use Per Capita'!I40*'Water Supply'!I41 -> 0 | D10: =IF('E for Groundwater Data'!Q9=0,'Default Energy Data'!$E$4,'E for Groundwater Data'!Q9) -> 540 | E10: ='Default Energy Data'!$K$4 -> 8900 | F10: =IF('E for Treatment Data'!P34=0,'Default Energy Data'!$K$5,'E for Treatment Data'!P34) -> 496.3023484 | G10: ='Default Energy Data'!$K$6 -> 1200 | H10: ='Default Energy Data'!F41/2.205 -> 418.7120181 | I10: 0 | J10: 0 | K10: 0 | L10: 0 | M10: 0
A11: 2050 | B11: =Population!J39*'Water Use Per Capita'!J40*'Water Supply'!J40 -> 0 | C11: =Population!J39*'Water Use Per Capita'!J40*'Water Supply'!J41 -> 0 | D11: =IF('E for Groundwater Data'!Q10=0,'Default Energy Data'!$E$4,'E for Groundwater Data'!Q10) -> 540 | E11: ='Default Energy Data'!$K$4 -> 8900 | F11: =IF('E for Treatment Data'!P35=0,'Default Energy Data'!$K$5,'E for Treatment Data'!P35) -> 496.3023484 | G11: ='Default Energy Data'!$K$6 -> 1200 | H11: ='Default Energy Data'!F41/2.205 -> 418.7120181 | I11: 0 | J11: 0 | K11: 0 | L11: 0 | M11: 0
M15: Scenario Name:
M17: Instructions
M18: Step 1: | N18: After completing data entry according to instructions, name your scenario in yellow box above and hit enter.
M23: Step 2: | N23: Open GHG Scenario Manager, then return to this worksheet.
M27: Step 2: | N27: Click on the Compare button. | O27: on export results.

Sheet State Water Project Data
A2: Imported Water Delivered Via the Santa Ana River | I2: Source:
B3: Date | C3: Monthly (ac-ft) | E3: Year | F3: Annual (ac-ft)
B4: 1990-01-01 | C4: 0 | E4: 1990 | F4: =SUM(C4:C15) -> 0
B5: 1990-02-01 | C5: 0 | E5: 1991 | F5: =SUM(C16:C27) -> 0 | J5: Instructions
B6: 1990-03-01 | C6: 0 | E6: 1992 | F6: =SUM(C40:C51) -> 0 | J6: Step 1: | K6: If available, please enter monthly State Water Project data in column C. The data will automatically be aggregated to annual data. If data is not available, please leave blank
B7: 1990-04-01 | C7: 0 | E7: 1993 | F7: =SUM(C7:C18) -> 0
B8: 1990-05-01 | C8: 0 | E8: 1994 | F8: =SUM(C52:C63) -> 3094
B9: 1990-06-01 | C9: 0 | E9: 1995 | F9: =SUM(C64:C75) -> 0
B10: 1990-07-01 | C10: 0 | E10: 1996 | F10: =SUM(C76:C87) -> 21233
B11: 1990-08-01 | C11: 0 | E11: 1997 | F11: =SUM(C88:C99) -> 45031 | J11: Step 2: | K11: If monthly data is not available please enter annual State Water Project data in column F. If data is not available, please leave blank
B12: 1990-09-01 | C12: 0 | E12: 1998 | F12: =SUM(C100:C111) -> 760
B13: 1990-10-01 | C13: 0 | E13: 1999 | F13: =SUM(C112:C123) -> 8899
B14: 1990-11-01 | C14: 0 | E14: 2000 | F14: =SUM(C124:C135) -> 12288
B15: 1990-12-01 | C15: 0 | E15: 2001 | F15: =SUM(C136:C147) -> 0 | J15: Notes: | K15: If you do not use any imported water from the State Water Project, please leave blank. If no data is available for State Water Project, defaults will be used. Source data can be inserted for future reference.
B16: 1991-01-01 | C16: 0 | E16: 2002 | F16: =SUM(C148:C159) -> 2945
B17: 1991-02-01 | C17: 0 | E17: 2003 | F17: =SUM(C160:C171) -> 4639
B18: 1991-03-01 | C18: 0 | E18: 2004 | F18: =SUM(C172:C183) -> 5139
B19: 1991-04-01 | C19: 0 | E19: 2005 | F19: =SUM(C184:C195) -> 1377
B20: 1991-05-01 | C20: 0 | E20: 2006 | F20: =SUM(C192:C203) -> 1377
B21: 1991-06-01 | C21: 0 | E21: 2007 | F21: =SUM(C208:C219) -> 0
B22: 1991-07-01 | C22: 0 | E22: 2008 | F22: =SUM(C220:C231) -> 0
B23: 1991-08-01 | C23: 0 | E23: 2009 | F23: =SUM(C232:C243) -> 0
B24: 1991-09-01 | C24: 0 | E24: 2010 | F24: =SUM(C244:C255) -> 0
B25: 1991-10-01 | C25: 0 | E25: 2011 | F25: =SUM(C256:C267) -> 12272
B26: 1991-11-01 | C26: 0 | E26: 2012 | F26: 0
B27: 1991-12-01 | C27: 0
B28: 1992-01-01 | C28: 0
B29: 1992-02-01 | C29: 0
B30: 1992-03-01 | C30: 0
B31: 1992-04-01 | C31: 0
B32: 1992-05-01 | C32: 0
B33: 1992-06-01 | C33: 0
B34: 1992-07-01 | C34: 0
B35: 1992-08-01 | C35: 0
B36: 1992-09-01 | C36: 0
B37: 1992-10-01 | C37: 0
B38: 1992-11-01 | C38: 0
B39: 1992-12-01 | C39: 0
B40: 1993-01-01 | C40: 0
B41: 1993-02-01 | C41: 0
B42: 1993-03-01 | C42: 0
B43: 1993-04-01 | C43: 0
B44: 1993-05-01 | C44: 0
B45: 1993-06-01 | C45: 0
B46: 1993-07-01 | C46: 0
B47: 1993-08-01 | C47: 0
B48: 1993-09-01 | C48: 0
B49: 1993-10-01 | C49: 0
B50: 1993-11-01 | C50: 0
B51: 1993-12-01 | C51: 0
B52: 1994-01-01 | C52: 0
B53: 1994-02-01 | C53: 0
B54: 1994-03-01 | C54: 0
B55: 1994-04-01 | C55: 0
B56: 1994-05-01 | C56: 0
B57: 1994-06-01 | C57: 0
B58: 1994-07-01 | C58: 0
B59: 1994-08-01 | C59: 0
B60: 1994-09-01 | C60: 0
B61: 1994-10-01 | C61: 292
B62: 1994-11-01 | C62: 2172
B63: 1994-12-01 | C63: 630
B64: 1995-01-01 | C64: 0
B65: 1995-02-01 | C65: 0
B66: 1995-03-01 | C66: 0
B67: 1995-04-01 | C67: 0
B68: 1995-05-01 | C68: 0
B69: 1995-06-01 | C69: 0
B70: 1995-07-01 | C70: 0
B71: 1995-08-01 | C71: 0
B72: 1995-09-01 | C72: 0
B73: 1995-10-01 | C73: 0
B74: 1995-11-01 | C74: 0
B75: 1995-12-01 | C75: 0
B76: 1996-01-01 | C76: 0
B77: 1996-02-01 | C77: 0
B78: 1996-03-01 | C78: 0
B79: 1996-04-01 | C79: 3538
B80: 1996-05-01 | C80: 6133
B81: 1996-06-01 | C81: 5608
B82: 1996-07-01 | C82: 5954
B83: 1996-08-01 | C83: 0
B84: 1996-09-01 | C84: 0
B85: 1996-10-01 | C85: 0
B86: 1996-11-01 | C86: 0
B87: 1996-12-01 | C87: 0
B88: 1997-01-01 | C88: 0
B89: 1997-02-01 | C89: 0
B90: 1997-03-01 | C90: 0
B91: 1997-04-01 | C91: 1428
B92: 1997-05-01 | C92: 6022
B93: 1997-06-01 | C93: 5973
B94: 1997-07-01 | C94: 6303
B95: 1997-08-01 | C95: 11571
B96: 1997-09-01 | C96: 11617
B97: 1997-10-01 | C97: 2117
B98: 1997-11-01 | C98: 0
B99: 1997-12-01 | C99: 0
B100: 1998-01-01 | C100: 0
B101: 1998-02-01 | C101: 0
B102: 1998-03-01 | C102: 0
B103: 1998-04-01 | C103: 0
B104: 1998-05-01 | C104: 0
B105: 1998-06-01 | C105: 0
B106: 1998-07-01 | C106: 544
B107: 1998-08-01 | C107: 216
B108: 1998-09-01 | C108: 0
B109: 1998-10-01 | C109: 0
B110: 1998-11-01 | C110: 0
B111: 1998-12-01 | C111: 0
B112: 1999-01-01 | C112: 0
B113: 1999-02-01 | C113: 0
B114: 1999-03-01 | C114: 0
B115: 1999-04-01 | C115: 0
B116: 1999-05-01 | C116: 0
B117: 1999-06-01 | C117: 0
B118: 1999-07-01 | C118: 0
B119: 1999-08-01 | C119: 0
B120: 1999-09-01 | C120: 0
B121: 1999-10-01 | C121: 5870
B122: 1999-11-01 | C122: 0
B123: 1999-12-01 | C123: 3029
B124: 2000-01-01 | C124: 3773
B125: 2000-02-01 | C125: 2038
B126: 2000-03-01 | C126: 0
B127: 2000-04-01 | C127: 0
B128: 2000-05-01 | C128: 0
B129: 2000-06-01 | C129: 0
B130: 2000-07-01 | C130: 0
B131: 2000-08-01 | C131: 0
B132: 2000-09-01 | C132: 0
B133: 2000-10-01 | C133: 2562
B134: 2000-11-01 | C134: 3915
B135: 2000-12-01 | C135: 0
B136: 2001-01-01 | C136: 0
B137: 2001-02-01 | C137: 0
B138: 2001-03-01 | C138: 0
B139: 2001-04-01 | C139: 0
B140: 2001-05-01 | C140: 0
B141: 2001-06-01 | C141: 0
B142: 2001-07-01 | C142: 0
B143: 2001-08-01 | C143: 0
B144: 2001-09-01 | C144: 0
B145: 2001-10-01 | C145: 0
B146: 2001-11-01 | C146: 0
B147: 2001-12-01 | C147: 0
B148: 2002-01-01 | C148: 0
B149: 2002-02-01 | C149: 0
B150: 2002-03-01 | C150: 0
B151: 2002-04-01 | C151: 0
B152: 2002-05-01 | C152: 0
B153: 2002-06-01 | C153: 0
B154: 2002-07-01 | C154: 517
B155: 2002-08-01 | C155: 2428
B156: 2002-09-01 | C156: 0
B157: 2002-10-01 | C157: 0
B158: 2002-11-01 | C158: 0
B159: 2002-12-01 | C159: 0
B160: 2003-01-01 | C160: 0
B161: 2003-02-01 | C161: 0
B162: 2003-03-01 | C162: 0
B163: 2003-04-01 | C163: 0
B164: 2003-05-01 | C164: 0
B165: 2003-06-01 | C165: 0
B166: 2003-07-01 | C166: 0
B167: 2003-08-01 | C167: 715
B168: 2003-09-01 | C168: 1051
B169: 2003-10-01 | C169: 2122
B170: 2003-11-01 | C170: 751
B171: 2003-12-01 | C171: 0
B172: 2004-01-01 | C172: 0
B173: 2004-02-01 | C173: 0
B174: 2004-03-01 | C174: 0
B175: 2004-04-01 | C175: 0
B176: 2004-05-01 | C176: 1723
B177: 2004-06-01 | C177: 740
B178: 2004-07-01 | C178: 1047
B179: 2004-08-01 | C179: 351
B180: 2004-09-01 | C180: 1278
B181: 2004-10-01 | C181: 0
B182: 2004-11-01 | C182: 0
B183: 2004-12-01 | C183: 0
B184: 2005-01-01 | C184: 0
B185: 2005-02-01 | C185: 0
B186: 2005-03-01 | C186: 0
B187: 2005-04-01 | C187: 0
B188: 2005-05-01 | C188: 0
B189: 2005-06-01 | C189: 0
B190: 2005-07-01 | C190: 0
B191: 2005-08-01 | C191: 0
B192: 2005-09-01 | C192: 662
B193: 2005-10-01 | C193: 715
B194: 2005-11-01 | C194: 0
B195: 2005-12-01 | C195: 0
B196: 2006-01-01 | C196: 0
B197: 2006-02-01 | C197: 0
B198: 2006-03-01 | C198: 0
B199: 2006-04-01 | C199: 0
B200: 2006-05-01 | C200: 0
B201: 2006-06-01 | C201: 0
... 66 more rows

Sheet Colorado River Water Data
A2: Imported Water Delivered Via the Santa Ana River | I2: Source:
B3: Date | C3: Monthly (ac-ft) | E3: Year | F3: Annual (ac-ft)
B4: 1990-01-01 | C4: 0 | E4: 1990 | F4: =SUM(C4:C15) -> 27098
B5: 1990-02-01 | C5: 0 | E5: 1991 | F5: =SUM(C16:C27) -> 53109.4 | J5: Instructions
B6: 1990-03-01 | C6: 2605.8 | E6: 1992 | F6: =SUM(C40:C51) -> 22970.4 | J6: Step 1: | K6: If available, please enter monthly State Water Project data in column C. The data will automatically be aggregated to annual data. If data is not available, please leave blank
B7: 1990-04-01 | C7: 9900 | E7: 1993 | F7: =SUM(C7:C18) -> 27209.9
B8: 1990-05-01 | C8: 294.6 | E8: 1994 | F8: =SUM(C52:C63) -> 74107.4
B9: 1990-06-01 | C9: 1396.3 | E9: 1995 | F9: =SUM(C64:C75) -> 0
B10: 1990-07-01 | C10: 45.4 | E10: 1996 | F10: =SUM(C76:C87) -> 6312.7
B11: 1990-08-01 | C11: 31.9 | E11: 1997 | F11: =SUM(C88:C99) -> 8053.4 | J11: Step 2: | K11: If monthly data is not available please enter annual State Water Project data in column F. If data is not available, please leave blank
B12: 1990-09-01 | C12: 2437.1 | E12: 1998 | F12: =SUM(C100:C111) -> 9612
B13: 1990-10-01 | C13: 7918.6 | E13: 1999 | F13: =SUM(C112:C123) -> 10001.5
B14: 1990-11-01 | C14: 2468.3 | E14: 2000 | F14: =SUM(C124:C135) -> 59875.1
B15: 1990-12-01 | C15: 0 | E15: 2001 | F15: =SUM(C136:C147) -> 32150.7 | J15: Notes: | K15: If you do not use any imported water from the Colorado River, please leave blank. If no data is available for State Water Project, defaults will be used. Source data can be inserted for future reference.
B16: 1991-01-01 | C16: 2204.1 | E16: 2002 | F16: =SUM(C148:C159) -> 41027.7
B17: 1991-02-01 | C17: 513.6 | E17: 2003 | F17: =SUM(C160:C171) -> 13190.5
B18: 1991-03-01 | C18: 0 | E18: 2004 | F18: =SUM(C172:C183) -> 0
B19: 1991-04-01 | C19: 0 | E19: 2005 | F19: =SUM(C184:C195) -> 6880
B20: 1991-05-01 | C20: 0 | E20: 2006 | F20: =SUM(C192:C203) -> 20177.7
B21: 1991-06-01 | C21: 0 | E21: 2007 | F21: =SUM(C208:C219) -> 7192.9
B22: 1991-07-01 | C22: 0 | E22: 2008 | F22: =SUM(C220:C231) -> 0
B23: 1991-08-01 | C23: 2083.3 | E23: 2009 | F23: =SUM(C232:C243) -> 24901.6
B24: 1991-09-01 | C24: 10478.4 | E24: 2010 | F24: =SUM(C244:C255) -> 30162.04
B25: 1991-10-01 | C25: 18069.7 | E25: 2011 | F25: =SUM(C256:C267) -> 40232.24
B26: 1991-11-01 | C26: 8657.1 | E26: 2012 | F26: 38890.5
B27: 1991-12-01 | C27: 11103.2
B28: 1992-01-01 | C28: 0
B29: 1992-02-01 | C29: 0
B30: 1992-03-01 | C30: 0
B31: 1992-04-01 | C31: 4276.2
B32: 1992-05-01 | C32: 70.1
B33: 1992-06-01 | C33: 481.5
B34: 1992-07-01 | C34: 3603.4
B35: 1992-08-01 | C35: 8249.9
B36: 1992-09-01 | C36: 2399.4
B37: 1992-10-01 | C37: 49.7
B38: 1992-11-01 | C38: 1827
B39: 1992-12-01 | C39: 6463.3
B40: 1993-01-01 | C40: 1516.7
B41: 1993-02-01 | C41: 347.6
B42: 1993-03-01 | C42: 0
B43: 1993-04-01 | C43: 0
B44: 1993-05-01 | C44: 0
B45: 1993-06-01 | C45: 2023.8
B46: 1993-07-01 | C46: 818.9
B47: 1993-08-01 | C47: 11222.2
B48: 1993-09-01 | C48: 7041.2
B49: 1993-10-01 | C49: 0
B50: 1993-11-01 | C50: 0
B51: 1993-12-01 | C51: 0
B52: 1994-01-01 | C52: 3256
B53: 1994-02-01 | C53: 0
B54: 1994-03-01 | C54: 6662.4
B55: 1994-04-01 | C55: 13436.8
B56: 1994-05-01 | C56: 17905.1
B57: 1994-06-01 | C57: 18178.7
B58: 1994-07-01 | C58: 0
B59: 1994-08-01 | C59: 0
B60: 1994-09-01 | C60: 0
B61: 1994-10-01 | C61: 5412.7
B62: 1994-11-01 | C62: 7477.7
B63: 1994-12-01 | C63: 1778
B64: 1995-01-01 | C64: 0
B65: 1995-02-01 | C65: 0
B66: 1995-03-01 | C66: 0
B67: 1995-04-01 | C67: 0
B68: 1995-05-01 | C68: 0
B69: 1995-06-01 | C69: 0
B70: 1995-07-01 | C70: 0
B71: 1995-08-01 | C71: 0
B72: 1995-09-01 | C72: 0
B73: 1995-10-01 | C73: 0
B74: 1995-11-01 | C74: 0
B75: 1995-12-01 | C75: 0
B76: 1996-01-01 | C76: 0
B77: 1996-02-01 | C77: 0
B78: 1996-03-01 | C78: 0
B79: 1996-04-01 | C79: 0
B80: 1996-05-01 | C80: 0
B81: 1996-06-01 | C81: 0
B82: 1996-07-01 | C82: 0
B83: 1996-08-01 | C83: 0
B84: 1996-09-01 | C84: 0
B85: 1996-10-01 | C85: 6312.5
B86: 1996-11-01 | C86: 0.2
B87: 1996-12-01 | C87: 0
B88: 1997-01-01 | C88: 0
B89: 1997-02-01 | C89: 0.1
B90: 1997-03-01 | C90: 0
B91: 1997-04-01 | C91: 2402.5
B92: 1997-05-01 | C92: 5299.2
B93: 1997-06-01 | C93: 351.6
B94: 1997-07-01 | C94: 0
B95: 1997-08-01 | C95: 0
B96: 1997-09-01 | C96: 0
B97: 1997-10-01 | C97: 0
B98: 1997-11-01 | C98: 0
B99: 1997-12-01 | C99: 0
B100: 1998-01-01 | C100: 0
B101: 1998-02-01 | C101: 0
B102: 1998-03-01 | C102: 0
B103: 1998-04-01 | C103: 0
B104: 1998-05-01 | C104: 0
B105: 1998-06-01 | C105: 0
B106: 1998-07-01 | C106: 0
B107: 1998-08-01 | C107: 0
B108: 1998-09-01 | C108: 0
B109: 1998-10-01 | C109: 9612
B110: 1998-11-01 | C110: 0
B111: 1998-12-01 | C111: 0
B112: 1999-01-01 | C112: 0
B113: 1999-02-01 | C113: 0
B114: 1999-03-01 | C114: 0
B115: 1999-04-01 | C115: 0
B116: 1999-05-01 | C116: 0
B117: 1999-06-01 | C117: 0
B118: 1999-07-01 | C118: 2582.9
B119: 1999-08-01 | C119: 3126.5
B120: 1999-09-01 | C120: 3034.6
B121: 1999-10-01 | C121: 1257.5
B122: 1999-11-01 | C122: 0
B123: 1999-12-01 | C123: 0
B124: 2000-01-01 | C124: 0
B125: 2000-02-01 | C125: 0
B126: 2000-03-01 | C126: 0
B127: 2000-04-01 | C127: 0
B128: 2000-05-01 | C128: 2350.4
B129: 2000-06-01 | C129: 4598.5
B130: 2000-07-01 | C130: 8198.7
B131: 2000-08-01 | C131: 11508.1
B132: 2000-09-01 | C132: 11535.7
B133: 2000-10-01 | C133: 10718.4
B134: 2000-11-01 | C134: 8986.4
B135: 2000-12-01 | C135: 1978.9
B136: 2001-01-01 | C136: 529.8
B137: 2001-02-01 | C137: 0
B138: 2001-03-01 | C138: 0
B139: 2001-04-01 | C139: 5751
B140: 2001-05-01 | C140: 518
B141: 2001-06-01 | C141: 763.9
B142: 2001-07-01 | C142: 46
B143: 2001-08-01 | C143: 0
B144: 2001-09-01 | C144: 0
B145: 2001-10-01 | C145: 10649.2
B146: 2001-11-01 | C146: 12048.5
B147: 2001-12-01 | C147: 1844.3
B148: 2002-01-01 | C148: 2147
B149: 2002-02-01 | C149: 0
B150: 2002-03-01 | C150: 0
B151: 2002-04-01 | C151: 0
B152: 2002-05-01 | C152: 525.9
B153: 2002-06-01 | C153: 5899
B154: 2002-07-01 | C154: 10802
B155: 2002-08-01 | C155: 9705.5
B156: 2002-09-01 | C156: 2812
B157: 2002-10-01 | C157: 4814.8
B158: 2002-11-01 | C158: 1678
B159: 2002-12-01 | C159: 2643.5
B160: 2003-01-01 | C160: 645.8
B161: 2003-02-01 | C161: 881.8
B162: 2003-03-01 | C162: 1116.4
B163: 2003-04-01 | C163: 0
B164: 2003-05-01 | C164: 0
B165: 2003-06-01 | C165: 354
B166: 2003-07-01 | C166: 5076.4
B167: 2003-08-01 | C167: 705.3
B168: 2003-09-01 | C168: 0
B169: 2003-10-01 | C169: 0
B170: 2003-11-01 | C170: 1733.7
B171: 2003-12-01 | C171: 2677.1
B172: 2004-01-01 | C172: 0
B173: 2004-02-01 | C173: 0
B174: 2004-03-01 | C174: 0
B175: 2004-04-01 | C175: 0
B176: 2004-05-01 | C176: 0
B177: 2004-06-01 | C177: 0
B178: 2004-07-01 | C178: 0
B179: 2004-08-01 | C179: 0
B180: 2004-09-01 | C180: 0
B181: 2004-10-01 | C181: 0
B182: 2004-11-01 | C182: 0
B183: 2004-12-01 | C183: 0
B184: 2005-01-01 | C184: 0
B185: 2005-02-01 | C185: 0
B186: 2005-03-01 | C186: 13.6
B187: 2005-04-01 | C187: 0
B188: 2005-05-01 | C188: 1121.6
B189: 2005-06-01 | C189: 0
B190: 2005-07-01 | C190: 1.9
B191: 2005-08-01 | C191: 467
B192: 2005-09-01 | C192: 3446.3
B193: 2005-10-01 | C193: 1824.2
B194: 2005-11-01 | C194: 1.1
B195: 2005-12-01 | C195: 4.3
B196: 2006-01-01 | C196: 3.9
B197: 2006-02-01 | C197: 3
B198: 2006-03-01 | C198: 123.2
B199: 2006-04-01 | C199: 1.5
B200: 2006-05-01 | C200: 1.7
B201: 2006-06-01 | C201: 0.9
... 66 more rows

Sheet Potable Water Treatment Data
A1: Potable Water Treatment Flow Data | S1: Source:
A2: Date | B2: Flow per Month to Treatment Plant 1 (gal) | C2: Flow per Month to Treatment Plant 2 (gal) | D2: Flow per Month to Treatment Plant 3 (gal) | E2: Flow per Month to Treatment Plant 4 (gal) | F2: Flow per Month to Treatment Plant 5 (gal) | G2: Flow per Month to Treatment Plant 6 (gal) | H2: Flow per Month to Treatment Plant 7 (gal) | I2: Flow per Month to Treatment Plant 8 (gal) | J2: Flow per Month to Treatment Plant 9 (gal) | K2: Flow per Month to Treatment Plant 10 (gal) | L2: Flow per Month to Treatment Plant 11 (gal) | M2: Total Monthly Flow to Treatment Plant (MG) | O2: Year | P2: Total Annual Flow to Treatment Plant (MG) | Q2: Average Daily Flow per Year to Treatment Plant (MGD)
A3: 1990-01-01 | M3: =SUM(B3:L3)*0.000001 -> 0 | O3: 1990 | P3: =SUM(M3:M14) -> 0 | Q3: =SUM(M3:M14)/365 -> 0
A4: 1990-02-01 | M4: =SUM(B4:L4)*0.000001 -> 0 | O4: 1991 | P4: =SUM(M15:M26) -> 0 | Q4: =SUM(M15:M26)/365 -> 0 | S4: Instructions
A5: 1990-03-01 | M5: 0 | O5: 1992 | P5: =SUM(M39:M50) -> 0 | Q5: =SUM(M39:M50)/365 -> 0 | S5: Step 1: | T5: If available, please enter monthly flow data for all drinking water treatment plants in columns B-L., if not available please leave blank. The data will automatically be summed and converted to MGD.
A6: 1990-04-01 | M6: 0 | O6: 1993 | P6: =SUM(M6:M17) -> 0 | Q6: =SUM(M6:M17)/365 -> 0
A7: 1990-05-01 | M7: 0 | O7: 1994 | P7: =SUM(M51:M62) -> 0 | Q7: =SUM(M51:M62)/365 -> 0
A8: 1990-06-01 | M8: 0 | O8: 1995 | P8: =SUM(M63:M74) -> 0 | Q8: =SUM(M63:M74)/365 -> 0
A9: 1990-07-01 | M9: 0 | O9: 1996 | P9: =SUM(M75:M86) -> 0 | Q9: =SUM(M75:M86)/365 -> 0
A10: 1990-08-01 | M10: 0 | O10: 1997 | P10: =SUM(M87:M98) -> 0 | Q10: =SUM(M87:M98)/365 -> 0 | S10: Step 2: | T10: If monthly data is not available please enter total annual flow data in column P, if not available please leave blank.
A11: 1990-09-01 | M11: 0 | O11: 1998 | P11: =SUM(M99:M110) -> 0 | Q11: =SUM(M99:M110)/365 -> 0
A12: 1990-10-01 | M12: 0 | O12: 1999 | P12: =SUM(M111:M122) -> 0 | Q12: =SUM(M111:M122)/365 -> 0
A13: 1990-11-01 | M13: 0 | O13: 2000 | P13: =SUM(M123:M134) -> 0 | Q13: =SUM(M123:M134)/365 -> 0
A14: 1990-12-01 | M14: 0 | O14: 2001 | P14: =SUM(M135:M146) -> 0 | Q14: =SUM(M135:M146)/365 -> 0 | S14: Notes: | T14: If no water treatment flow data is available, defaults will be used. Source data can be inserted for future reference.
A15: 1991-01-01 | M15: 0 | O15: 2002 | P15: =SUM(M147:M158) -> 0 | Q15: =SUM(M147:M158)/365 -> 0
A16: 1991-02-01 | M16: 0 | O16: 2003 | P16: =SUM(M159:M170) -> 0 | Q16: =SUM(M159:M170)/365 -> 0
A17: 1991-03-01 | M17: 0 | O17: 2004 | P17: =SUM(M171:M182) -> 0 | Q17: =SUM(M171:M182)/365 -> 0
A18: 1991-04-01 | M18: 0 | O18: 2005 | P18: =SUM(M183:M194) -> 0 | Q18: =SUM(M183:M194)/365 -> 0
A19: 1991-05-01 | M19: 0 | O19: 2006 | P19: =SUM(M191:M202) -> 0 | Q19: =SUM(M191:M202)/365 -> 0
A20: 1991-06-01 | M20: 0 | O20: 2007 | P20: =SUM(M207:M218) -> 0 | Q20: =SUM(M207:M218)/365 -> 0
A21: 1991-07-01 | M21: 0 | O21: 2008 | P21: =SUM(M219:M230) -> 0 | Q21: =SUM(M219:M230)/365 -> 0
A22: 1991-08-01 | M22: 0 | O22: 2009 | P22: =SUM(M231:M242) -> 0 | Q22: =SUM(M231:M242)/365 -> 0
A23: 1991-09-01 | M23: 0 | O23: 2010 | P23: =SUM(M243:M254) -> 0 | Q23: =SUM(M243:M254)/365 -> 0
A24: 1991-10-01 | M24: 0 | O24: 2011 | P24: =SUM(M255:M266) -> 4225.994511 | Q24: =SUM(M255:M266)/365 -> 11.57806715
A25: 1991-11-01 | M25: 0 | O25: 2012 | P25: 0 | Q25: =SUM(M25:M36)/365 -> 0
A26: 1991-12-01 | M26: 0
A27: 1992-01-01 | M27: 0
A28: 1992-02-01 | M28: 0
A29: 1992-03-01 | M29: 0
A30: 1992-04-01 | M30: 0
A31: 1992-05-01 | M31: 0
A32: 1992-06-01 | M32: 0
A33: 1992-07-01 | M33: 0
A34: 1992-08-01 | M34: 0
A35: 1992-09-01 | M35: 0
A36: 1992-10-01 | M36: 0
A37: 1992-11-01 | M37: 0
A38: 1992-12-01 | M38: 0
A39: 1993-01-01 | M39: 0
A40: 1993-02-01 | M40: 0
A41: 1993-03-01 | M41: 0
A42: 1993-04-01 | M42: 0
A43: 1993-05-01 | M43: 0
A44: 1993-06-01 | M44: 0
A45: 1993-07-01 | M45: 0
A46: 1993-08-01 | M46: 0
A47: 1993-09-01 | M47: 0
A48: 1993-10-01 | M48: 0
A49: 1993-11-01 | M49: 0
A50: 1993-12-01 | M50: 0
A51: 1994-01-01 | M51: 0
A52: 1994-02-01 | M52: 0
A53: 1994-03-01 | M53: 0
A54: 1994-04-01 | M54: 0
A55: 1994-05-01 | M55: 0
A56: 1994-06-01 | M56: 0
A57: 1994-07-01 | M57: 0
A58: 1994-08-01 | M58: 0
A59: 1994-09-01 | M59: 0
A60: 1994-10-01 | M60: 0
A61: 1994-11-01 | M61: 0
A62: 1994-12-01 | M62: 0
A63: 1995-01-01 | M63: 0
A64: 1995-02-01 | M64: 0
A65: 1995-03-01 | M65: 0
A66: 1995-04-01 | M66: 0
A67: 1995-05-01 | M67: 0
A68: 1995-06-01 | M68: =SUM(B68:L68)*0.000001 -> 0
A69: 1995-07-01 | M69: 0
A70: 1995-08-01 | M70: 0
A71: 1995-09-01 | M71: 0
A72: 1995-10-01 | M72: 0
A73: 1995-11-01 | M73: 0
A74: 1995-12-01 | M74: 0
A75: 1996-01-01 | M75: 0
A76: 1996-02-01 | M76: 0
A77: 1996-03-01 | M77: 0
A78: 1996-04-01 | M78: 0
A79: 1996-05-01 | M79: 0
A80: 1996-06-01 | M80: 0
A81: 1996-07-01 | M81: 0
A82: 1996-08-01 | M82: 0
A83: 1996-09-01 | M83: 0
A84: 1996-10-01 | M84: 0
A85: 1996-11-01 | M85: 0
A86: 1996-12-01 | M86: 0
A87: 1997-01-01 | M87: 0
A88: 1997-02-01 | M88: 0
A89: 1997-03-01 | M89: 0
A90: 1997-04-01 | M90: 0
A91: 1997-05-01 | M91: 0
A92: 1997-06-01 | M92: 0
A93: 1997-07-01 | M93: 0
A94: 1997-08-01 | M94: 0
A95: 1997-09-01 | M95: 0
A96: 1997-10-01 | M96: 0
A97: 1997-11-01 | M97: 0
A98: 1997-12-01 | M98: 0
A99: 1998-01-01 | M99: 0
A100: 1998-02-01 | M100: 0
A101: 1998-03-01 | M101: 0
A102: 1998-04-01 | M102: 0
A103: 1998-05-01 | M103: 0
A104: 1998-06-01 | M104: 0
A105: 1998-07-01 | M105: 0
A106: 1998-08-01 | M106: 0
A107: 1998-09-01 | M107: 0
A108: 1998-10-01 | M108: 0
A109: 1998-11-01 | M109: 0
A110: 1998-12-01 | M110: 0
A111: 1999-01-01 | M111: 0
A112: 1999-02-01 | M112: 0
A113: 1999-03-01 | M113: 0
A114: 1999-04-01 | M114: 0
A115: 1999-05-01 | M115: 0
A116: 1999-06-01 | M116: 0
A117: 1999-07-01 | M117: 0
A118: 1999-08-01 | M118: 0
A119: 1999-09-01 | M119: 0
A120: 1999-10-01 | M120: 0
A121: 1999-11-01 | M121: 0
A122: 1999-12-01 | M122: 0
A123: 2000-01-01 | M123: 0
A124: 2000-02-01 | M124: 0
A125: 2000-03-01 | M125: 0
A126: 2000-04-01 | M126: 0
A127: 2000-05-01 | M127: 0
A128: 2000-06-01 | M128: 0
A129: 2000-07-01 | M129: 0
A130: 2000-08-01 | M130: 0
A131: 2000-09-01 | M131: 0
A132: 2000-10-01 | M132: =SUM(B132:L132)*0.000001 -> 0
A133: 2000-11-01 | M133: 0
A134: 2000-12-01 | M134: 0
A135: 2001-01-01 | M135: 0
A136: 2001-02-01 | M136: 0
A137: 2001-03-01 | M137: 0
A138: 2001-04-01 | M138: 0
A139: 2001-05-01 | M139: 0
A140: 2001-06-01 | M140: 0
A141: 2001-07-01 | M141: 0
A142: 2001-08-01 | M142: 0
A143: 2001-09-01 | M143: 0
A144: 2001-10-01 | M144: 0
A145: 2001-11-01 | M145: 0
A146: 2001-12-01 | M146: 0
A147: 2002-01-01 | M147: 0
A148: 2002-02-01 | M148: 0
A149: 2002-03-01 | M149: 0
A150: 2002-04-01 | M150: 0
A151: 2002-05-01 | M151: 0
A152: 2002-06-01 | M152: 0
A153: 2002-07-01 | M153: 0
A154: 2002-08-01 | M154: 0
A155: 2002-09-01 | M155: 0
A156: 2002-10-01 | M156: 0
A157: 2002-11-01 | M157: 0
A158: 2002-12-01 | M158: 0
A159: 2003-01-01 | M159: 0
A160: 2003-02-01 | M160: 0
A161: 2003-03-01 | M161: 0
A162: 2003-04-01 | M162: 0
A163: 2003-05-01 | M163: 0
A164: 2003-06-01 | M164: 0
A165: 2003-07-01 | M165: 0
A166: 2003-08-01 | M166: 0
A167: 2003-09-01 | M167: 0
A168: 2003-10-01 | M168: 0
A169: 2003-11-01 | M169: 0
A170: 2003-12-01 | M170: 0
A171: 2004-01-01 | M171: 0
A172: 2004-02-01 | M172: 0
A173: 2004-03-01 | M173: 0
A174: 2004-04-01 | M174: 0
A175: 2004-05-01 | M175: 0
A176: 2004-06-01 | M176: 0
A177: 2004-07-01 | M177: 0
A178: 2004-08-01 | M178: 0
A179: 2004-09-01 | M179: 0
A180: 2004-10-01 | M180: 0
A181: 2004-11-01 | M181: 0
A182: 2004-12-01 | M182: 0
A183: 2005-01-01 | M183: 0
A184: 2005-02-01 | M184: 0
A185: 2005-03-01 | M185: 0
A186: 2005-04-01 | M186: 0
A187: 2005-05-01 | M187: 0
A188: 2005-06-01 | M188: 0
A189: 2005-07-01 | M189: 0
A190: 2005-08-01 | M190: 0
A191: 2005-09-01 | M191: 0
A192: 2005-10-01 | M192: 0
A193: 2005-11-01 | M193: 0
A194: 2005-12-01 | M194: 0
A195: 2006-01-01 | M195: 0
A196: 2006-02-01 | M196: =SUM(B196:L196)*0.000001 -> 0
A197: 2006-03-01 | M197: 0
A198: 2006-04-01 | M198: 0
A199: 2006-05-01 | M199: 0
A200: 2006-06-01 | M200: 0
... 66 more rows

Sheet E for Treatment Data
A1: Potable Water Treatment Energy Data | S1: Source: | T1: OCWD
A2: Date | B2: Energy per Month to Treatment Plant 1 (KWh) | C2: Energy per Month to Treatment Plant 2 (KWh) | D2: Energy per Month to Treatment Plant 3 (KWh) | E2: Energy per Month to Treatment Plant 4 (KWh) | F2: Energy per Month to Treatment Plant 5 (KWh) | G2: Energy per Month to Treatment Plant 6 (KWh) | H2: Energy per Month to Treatment Plant 7 (KWh) | I2: Energy per Month to Treatment Plant 8 (KWh) | J2: Energy per Month to Treatment Plant 9 (KWh) | K2: Energy per Month to Treatment Plant 10 (KWh) | L2: Energy per Month to Treatment Plant 11 (KWh) | M2: Total Energy per Month to Treatment Plant (KWh) | O2: Year | P2: Total Energy per Year to Treatment Plant (KWh) | Q2: Water Intensities (KWh/MG)
A3: 1990-01-01 | M3: =SUM(B3:L3) -> 0 | O3: 1990 | P3: =SUM(M3:M14) -> 0 | Q3: =IF('Potable Water Treatment Data'!P3=0,0,P3/'Potable Water Treatment Data'!P3) -> 0
A4: 1990-02-01 | M4: =SUM(B4:L4) -> 0 | O4: 1991 | P4: =SUM(M15:M26) -> 0 | Q4: =IF('Potable Water Treatment Data'!P4=0,0,P4/'Potable Water Treatment Data'!P4) -> 0 | S4: Instructions
A5: 1990-03-01 | M5: 0 | O5: 1992 | P5: =SUM(M39:M50) -> 0 | Q5: =IF('Potable Water Treatment Data'!P5=0,0,P5/'Potable Water Treatment Data'!P5) -> 0 | S5: Step 1: | T5: If available, please enter monthly energy data for all drinking water treatment plants in columns B-L., if not available please leave blank. The data will automatically be summed and converted to intensities.
A6: 1990-04-01 | M6: 0 | O6: 1993 | P6: =SUM(M6:M17) -> 0 | Q6: =IF('Potable Water Treatment Data'!P6=0,0,P6/'Potable Water Treatment Data'!P6) -> 0
A7: 1990-05-01 | M7: 0 | O7: 1994 | P7: =SUM(M51:M62) -> 0 | Q7: =IF('Potable Water Treatment Data'!P7=0,0,P7/'Potable Water Treatment Data'!P7) -> 0
A8: 1990-06-01 | M8: 0 | O8: 1995 | P8: =SUM(M63:M74) -> 0 | Q8: =IF('Potable Water Treatment Data'!P8=0,0,P8/'Potable Water Treatment Data'!P8) -> 0
A9: 1990-07-01 | M9: 0 | O9: 1996 | P9: =SUM(M75:M86) -> 0 | Q9: =IF('Potable Water Treatment Data'!P9=0,0,P9/'Potable Water Treatment Data'!P9) -> 0
A10: 1990-08-01 | M10: 0 | O10: 1997 | P10: =SUM(M87:M98) -> 0 | Q10: =IF('Potable Water Treatment Data'!P10=0,0,P10/'Potable Water Treatment Data'!P10) -> 0 | S10: Step 2: | T10: If monthly data is not available please enter total annual energy data in column P, if not available please leave blank.
A11: 1990-09-01 | M11: 0 | O11: 1998 | P11: =SUM(M99:M110) -> 0 | Q11: =IF('Potable Water Treatment Data'!P11=0,0,P11/'Potable Water Treatment Data'!P11) -> 0
A12: 1990-10-01 | M12: 0 | O12: 1999 | P12: =SUM(M111:M122) -> 0 | Q12: =IF('Potable Water Treatment Data'!P12=0,0,P12/'Potable Water Treatment Data'!P12) -> 0
A13: 1990-11-01 | M13: 0 | O13: 2000 | P13: =SUM(M123:M134) -> 0 | Q13: =IF('Potable Water Treatment Data'!P13=0,0,P13/'Potable Water Treatment Data'!P13) -> 0
A14: 1990-12-01 | M14: 0 | O14: 2001 | P14: =SUM(M135:M146) -> 0 | Q14: =IF('Potable Water Treatment Data'!P14=0,0,P14/'Potable Water Treatment Data'!P14) -> 0 | S14: Notes: | T14: If no water treatment flow data is available, defaults will be used. Source data can be inserted for future reference.
A15: 1991-01-01 | M15: 0 | O15: 2002 | P15: =SUM(M147:M158) -> 0 | Q15: =IF('Potable Water Treatment Data'!P15=0,0,P15/'Potable Water Treatment Data'!P15) -> 0
A16: 1991-02-01 | M16: 0 | O16: 2003 | P16: =SUM(M159:M170) -> 0 | Q16: =IF('Potable Water Treatment Data'!P16=0,0,P16/'Potable Water Treatment Data'!P16) -> 0
A17: 1991-03-01 | M17: 0 | O17: 2004 | P17: =SUM(M171:M182) -> 0 | Q17: =IF('Potable Water Treatment Data'!P17=0,0,P17/'Potable Water Treatment Data'!P17) -> 0
A18: 1991-04-01 | M18: 0 | O18: 2005 | P18: =SUM(M183:M194) -> 0 | Q18: =IF('Potable Water Treatment Data'!P18=0,0,P18/'Potable Water Treatment Data'!P18) -> 0
A19: 1991-05-01 | M19: 0 | O19: 2006 | P19: =SUM(M191:M202) -> 0 | Q19: =IF('Potable Water Treatment Data'!P19=0,0,P19/'Potable Water Treatment Data'!P19) -> 0
A20: 1991-06-01 | M20: 0 | O20: 2007 | P20: =SUM(M207:M218) -> 0 | Q20: =IF('Potable Water Treatment Data'!P20=0,0,P20/'Potable Water Treatment Data'!P20) -> 0
A21: 1991-07-01 | M21: 0 | O21: 2008 | P21: =SUM(M219:M230) -> 0 | Q21: =IF('Potable Water Treatment Data'!P21=0,0,P21/'Potable Water Treatment Data'!P21) -> 0
A22: 1991-08-01 | M22: 0 | O22: 2009 | P22: =SUM(M231:M242) -> 0 | Q22: =IF('Potable Water Treatment Data'!P22=0,0,P22/'Potable Water Treatment Data'!P22) -> 0
A23: 1991-09-01 | M23: 0 | O23: 2010 | P23: =SUM(M243:M254) -> 0 | Q23: =IF('Potable Water Treatment Data'!P23=0,0,P23/'Potable Water Treatment Data'!P23) -> 0
A24: 1991-10-01 | M24: 0 | O24: 2011 | P24: =SUM(M255:M266) -> 2097371 | Q24: =IF('Potable Water Treatment Data'!P24=0,0,P24/'Potable Water Treatment Data'!P24) -> 496.3023484
A25: 1991-11-01 | M25: 0 | O25: 2012 | P25: 0 | Q25: =IF('Potable Water Treatment Data'!P25=0,0,P25/'Potable Water Treatment Data'!P25) -> 0
A26: 1991-12-01 | M26: 0
A27: 1992-01-01 | M27: 0
A28: 1992-02-01 | M28: 0 | O28: Year | P28: Water Intensities (KWh/MG)
A29: 1992-03-01 | M29: 0 | O29: 1990 | P29: =IF((IFERROR((SUM(Q3:Q12)/(COUNTIF(Q3:Q12,">0"))),0))=0,(IFERROR((SUM(Q3:Q25)/(COUNTIF(Q3:Q25,">0"))),0))) -> 496.3023484
A30: 1992-04-01 | M30: 0 | O30: 2000 | P30: =IF((IFERROR((SUM(Q13:Q22)/(COUNTIF(Q13:Q22,">0"))),0))=0,(IFERROR((SUM(Q3:Q25)/(COUNTIF(Q3:Q25,">0"))),0))) -> 496.3023484
A31: 1992-05-01 | M31: 0 | O31: 2010 | P31: =IFERROR((SUM(Q23:Q25)/(COUNTIF(Q23:Q25,">0"))),0) -> 496.3023484
A32: 1992-06-01 | M32: 0 | O32: 2020 | P32: =IFERROR((SUM(Q23:Q25)/(COUNTIF(Q23:Q25,">0"))),0) -> 496.3023484
A33: 1992-07-01 | M33: 0 | O33: 2030 | P33: =IFERROR((SUM(Q23:Q25)/(COUNTIF(Q23:Q25,">0"))),0) -> 496.3023484
A34: 1992-08-01 | M34: 0 | O34: 2040 | P34: =IFERROR((SUM(Q23:Q25)/(COUNTIF(Q23:Q25,">0"))),0) -> 496.3023484
A35: 1992-09-01 | M35: 0 | O35: 2050 | P35: =IFERROR((SUM(Q23:Q25)/(COUNTIF(Q23:Q25,">0"))),0) -> 496.3023484
A36: 1992-10-01 | M36: 0
A37: 1992-11-01 | M37: 0
A38: 1992-12-01 | M38: 0
A39: 1993-01-01 | M39: 0
A40: 1993-02-01 | M40: 0
A41: 1993-03-01 | M41: 0
A42: 1993-04-01 | M42: 0
A43: 1993-05-01 | M43: 0
A44: 1993-06-01 | M44: 0
A45: 1993-07-01 | M45: 0
A46: 1993-08-01 | M46: 0
A47: 1993-09-01 | M47: 0
A48: 1993-10-01 | M48: 0
A49: 1993-11-01 | M49: 0
A50: 1993-12-01 | M50: 0
A51: 1994-01-01 | M51: 0
A52: 1994-02-01 | M52: 0
A53: 1994-03-01 | M53: 0
A54: 1994-04-01 | M54: 0
A55: 1994-05-01 | M55: 0
A56: 1994-06-01 | M56: 0
A57: 1994-07-01 | M57: 0
A58: 1994-08-01 | M58: 0
A59: 1994-09-01 | M59: 0
A60: 1994-10-01 | M60: 0
A61: 1994-11-01 | M61: 0
A62: 1994-12-01 | M62: 0
A63: 1995-01-01 | M63: 0
A64: 1995-02-01 | M64: 0
A65: 1995-03-01 | M65: 0
A66: 1995-04-01 | M66: 0
A67: 1995-05-01 | M67: 0
A68: 1995-06-01 | M68: =SUM(B68:L68) -> 0
A69: 1995-07-01 | M69: 0
A70: 1995-08-01 | M70: 0
A71: 1995-09-01 | M71: 0
A72: 1995-10-01 | M72: 0
A73: 1995-11-01 | M73: 0
A74: 1995-12-01 | M74: 0
A75: 1996-01-01 | M75: 0
A76: 1996-02-01 | M76: 0
A77: 1996-03-01 | M77: 0
A78: 1996-04-01 | M78: 0
A79: 1996-05-01 | M79: 0
A80: 1996-06-01 | M80: 0
A81: 1996-07-01 | M81: 0
A82: 1996-08-01 | M82: 0
A83: 1996-09-01 | M83: 0
A84: 1996-10-01 | M84: 0
A85: 1996-11-01 | M85: 0
A86: 1996-12-01 | M86: 0
A87: 1997-01-01 | M87: 0
A88: 1997-02-01 | M88: 0
A89: 1997-03-01 | M89: 0
A90: 1997-04-01 | M90: 0
A91: 1997-05-01 | M91: 0
A92: 1997-06-01 | M92: 0
A93: 1997-07-01 | M93: 0
A94: 1997-08-01 | M94: 0
A95: 1997-09-01 | M95: 0
A96: 1997-10-01 | M96: 0
A97: 1997-11-01 | M97: 0
A98: 1997-12-01 | M98: 0
A99: 1998-01-01 | M99: 0
A100: 1998-02-01 | M100: 0
A101: 1998-03-01 | M101: 0
A102: 1998-04-01 | M102: 0
A103: 1998-05-01 | M103: 0
A104: 1998-06-01 | M104: 0
A105: 1998-07-01 | M105: 0
A106: 1998-08-01 | M106: 0
A107: 1998-09-01 | M107: 0
A108: 1998-10-01 | M108: 0
A109: 1998-11-01 | M109: 0
A110: 1998-12-01 | M110: 0
A111: 1999-01-01 | M111: 0
A112: 1999-02-01 | M112: 0
A113: 1999-03-01 | M113: 0
A114: 1999-04-01 | M114: 0
A115: 1999-05-01 | M115: 0
A116: 1999-06-01 | M116: 0
A117: 1999-07-01 | M117: 0
A118: 1999-08-01 | M118: 0
A119: 1999-09-01 | M119: 0
A120: 1999-10-01 | M120: 0
A121: 1999-11-01 | M121: 0
A122: 1999-12-01 | M122: 0
A123: 2000-01-01 | M123: 0
A124: 2000-02-01 | M124: 0
A125: 2000-03-01 | M125: 0
A126: 2000-04-01 | M126: 0
A127: 2000-05-01 | M127: 0
A128: 2000-06-01 | M128: 0
A129: 2000-07-01 | M129: 0
A130: 2000-08-01 | M130: 0
A131: 2000-09-01 | M131: 0
A132: 2000-10-01 | M132: =SUM(B132:L132) -> 0
A133: 2000-11-01 | M133: 0
A134: 2000-12-01 | M134: 0
A135: 2001-01-01 | M135: 0
A136: 2001-02-01 | M136: 0
A137: 2001-03-01 | M137: 0
A138: 2001-04-01 | M138: 0
A139: 2001-05-01 | M139: 0
A140: 2001-06-01 | M140: 0
A141: 2001-07-01 | M141: 0
A142: 2001-08-01 | M142: 0
A143: 2001-09-01 | M143: 0
A144: 2001-10-01 | M144: 0
A145: 2001-11-01 | M145: 0
A146: 2001-12-01 | M146: 0
A147: 2002-01-01 | M147: 0
A148: 2002-02-01 | M148: 0
A149: 2002-03-01 | M149: 0
A150: 2002-04-01 | M150: 0
A151: 2002-05-01 | M151: 0
A152: 2002-06-01 | M152: 0
A153: 2002-07-01 | M153: 0
A154: 2002-08-01 | M154: 0
A155: 2002-09-01 | M155: 0
A156: 2002-10-01 | M156: 0
A157: 2002-11-01 | M157: 0
A158: 2002-12-01 | M158: 0
A159: 2003-01-01 | M159: 0
A160: 2003-02-01 | M160: 0
A161: 2003-03-01 | M161: 0
A162: 2003-04-01 | M162: 0
A163: 2003-05-01 | M163: 0
A164: 2003-06-01 | M164: 0
A165: 2003-07-01 | M165: 0
A166: 2003-08-01 | M166: 0
A167: 2003-09-01 | M167: 0
A168: 2003-10-01 | M168: 0
A169: 2003-11-01 | M169: 0
A170: 2003-12-01 | M170: 0
A171: 2004-01-01 | M171: 0
A172: 2004-02-01 | M172: 0
A173: 2004-03-01 | M173: 0
A174: 2004-04-01 | M174: 0
A175: 2004-05-01 | M175: 0
A176: 2004-06-01 | M176: 0
A177: 2004-07-01 | M177: 0
A178: 2004-08-01 | M178: 0
A179: 2004-09-01 | M179: 0
A180: 2004-10-01 | M180: 0
A181: 2004-11-01 | M181: 0
A182: 2004-12-01 | M182: 0
A183: 2005-01-01 | M183: 0
A184: 2005-02-01 | M184: 0
A185: 2005-03-01 | M185: 0
A186: 2005-04-01 | M186: 0
A187: 2005-05-01 | M187: 0
A188: 2005-06-01 | M188: 0
A189: 2005-07-01 | M189: 0
A190: 2005-08-01 | M190: 0
A191: 2005-09-01 | M191: 0
A192: 2005-10-01 | M192: 0
A193: 2005-11-01 | M193: 0
A194: 2005-12-01 | M194: 0
A195: 2006-01-01 | M195: 0
A196: 2006-02-01 | M196: =SUM(B196:L196) -> 0
A197: 2006-03-01 | M197: 0
A198: 2006-04-01 | M198: 0
A199: 2006-05-01 | M199: 0
A200: 2006-06-01 | M200: 0
... 66 more rows

Sheet Groundwater Data
A1: Groundwater Elevation Data | S1: Source:
A2: Date | B2: Flow per Month from site 1 (gal) | C2: Flow per Month from site 2 (gal) | D2: Flow per Month from site 3 (gal) | E2: Flow per Month from site 4 (gal) | F2: Flow per Month from site 5 (gal) | G2: Flow per Month from site 6 (gal) | H2: Flow per Month from site 7 (gal) | I2: Flow per Month from site 8 (gal) | J2: Flow per Month from site 9 (gal) | K2: Flow per Month from site 10 (gal) | L2: Flow per Month from site 11 (gal) | M2: Total Monthly Flow (MG) | O2: Year | P2: Total Annual Flow (MG)
A3: 1990-01-01 | M3: =SUM(B3:L3)*0.000001 -> 0 | O3: 1990 | P3: =SUM(M3:M14) -> 0
A4: 1990-02-01 | M4: =SUM(B4:L4)*0.000001 -> 0 | O4: 1991 | P4: =SUM(M15:M26) -> 0 | R4: Instructions
A5: 1990-03-01 | M5: 0 | O5: 1992 | P5: =SUM(M39:M50) -> 0 | R5: Step 1: | S5: If available, please enter monthly flow data for all ground water extraction points in columns B-L., if not available please leave blank. The data will automatically be summed and converted to MG.
A6: 1990-04-01 | M6: 0 | O6: 1993 | P6: =SUM(M6:M17) -> 0
A7: 1990-05-01 | M7: 0 | O7: 1994 | P7: =SUM(M51:M62) -> 0
A8: 1990-06-01 | M8: 0 | O8: 1995 | P8: =SUM(M63:M74) -> 0
A9: 1990-07-01 | M9: 0 | O9: 1996 | P9: =SUM(M75:M86) -> 0
A10: 1990-08-01 | M10: 0 | O10: 1997 | P10: =SUM(M87:M98) -> 0 | R10: Step 2: | S10: If monthly data is not available please enter total annual flow data in column P, if not available please leave blank.
A11: 1990-09-01 | M11: 0 | O11: 1998 | P11: =SUM(M99:M110) -> 0
A12: 1990-10-01 | M12: 0 | O12: 1999 | P12: =SUM(M111:M122) -> 0
A13: 1990-11-01 | M13: 0 | O13: 2000 | P13: =SUM(M123:M134) -> 0
A14: 1990-12-01 | M14: 0 | O14: 2001 | P14: =SUM(M135:M146) -> 0 | R14: Notes: | S14: If no groundwater extraction data is available, defaults will be used. Source data can be inserted for future reference.
A15: 1991-01-01 | M15: 0 | O15: 2002 | P15: =SUM(M147:M158) -> 0
A16: 1991-02-01 | M16: 0 | O16: 2003 | P16: =SUM(M159:M170) -> 0
A17: 1991-03-01 | M17: 0 | O17: 2004 | P17: =SUM(M171:M182) -> 0
A18: 1991-04-01 | M18: 0 | O18: 2005 | P18: =SUM(M183:M194) -> 0
A19: 1991-05-01 | M19: 0 | O19: 2006 | P19: =SUM(M191:M202) -> 0
A20: 1991-06-01 | M20: 0 | O20: 2007 | P20: =SUM(M207:M218) -> 0
A21: 1991-07-01 | M21: 0 | O21: 2008 | P21: =SUM(M219:M230) -> 0
A22: 1991-08-01 | M22: 0 | O22: 2009 | P22: =SUM(M231:M242) -> 0
A23: 1991-09-01 | M23: 0 | O23: 2010 | P23: =SUM(M243:M254) -> 0
A24: 1991-10-01 | M24: 0 | O24: 2011 | P24: =SUM(M255:M266) -> 0
A25: 1991-11-01 | M25: 0 | O25: 2012 | P25: 0
A26: 1991-12-01 | M26: 0
A27: 1992-01-01 | M27: 0
A28: 1992-02-01 | M28: 0
A29: 1992-03-01 | M29: 0
A30: 1992-04-01 | M30: 0
A31: 1992-05-01 | M31: 0
A32: 1992-06-01 | M32: 0
A33: 1992-07-01 | M33: 0
A34: 1992-08-01 | M34: 0
A35: 1992-09-01 | M35: 0
A36: 1992-10-01 | M36: 0
A37: 1992-11-01 | M37: 0
A38: 1992-12-01 | M38: 0
A39: 1993-01-01 | M39: 0
A40: 1993-02-01 | M40: 0
A41: 1993-03-01 | M41: 0
A42: 1993-04-01 | M42: 0
A43: 1993-05-01 | M43: 0
A44: 1993-06-01 | M44: 0
A45: 1993-07-01 | M45: 0
A46: 1993-08-01 | M46: 0
A47: 1993-09-01 | M47: 0
A48: 1993-10-01 | M48: 0
A49: 1993-11-01 | M49: 0
A50: 1993-12-01 | M50: 0
A51: 1994-01-01 | M51: 0
A52: 1994-02-01 | M52: 0
A53: 1994-03-01 | M53: 0
A54: 1994-04-01 | M54: 0
A55: 1994-05-01 | M55: 0
A56: 1994-06-01 | M56: 0
A57: 1994-07-01 | M57: 0
A58: 1994-08-01 | M58: 0
A59: 1994-09-01 | M59: 0
A60: 1994-10-01 | M60: 0
A61: 1994-11-01 | M61: 0
A62: 1994-12-01 | M62: 0
A63: 1995-01-01 | M63: 0
A64: 1995-02-01 | M64: 0
A65: 1995-03-01 | M65: 0
A66: 1995-04-01 | M66: 0
A67: 1995-05-01 | M67: 0
A68: 1995-06-01 | M68: =SUM(B68:L68)*0.000001 -> 0
A69: 1995-07-01 | M69: 0
A70: 1995-08-01 | M70: 0
A71: 1995-09-01 | M71: 0
A72: 1995-10-01 | M72: 0
A73: 1995-11-01 | M73: 0
A74: 1995-12-01 | M74: 0
A75: 1996-01-01 | M75: 0
A76: 1996-02-01 | M76: 0
A77: 1996-03-01 | M77: 0
A78: 1996-04-01 | M78: 0
A79: 1996-05-01 | M79: 0
A80: 1996-06-01 | M80: 0
A81: 1996-07-01 | M81: 0
A82: 1996-08-01 | M82: 0
A83: 1996-09-01 | M83: 0
A84: 1996-10-01 | M84: 0
A85: 1996-11-01 | M85: 0
A86: 1996-12-01 | M86: 0
A87: 1997-01-01 | M87: 0
A88: 1997-02-01 | M88: 0
A89: 1997-03-01 | M89: 0
A90: 1997-04-01 | M90: 0
A91: 1997-05-01 | M91: 0
A92: 1997-06-01 | M92: 0
A93: 1997-07-01 | M93: 0
A94: 1997-08-01 | M94: 0
A95: 1997-09-01 | M95: 0
A96: 1997-10-01 | M96: 0
A97: 1997-11-01 | M97: 0
A98: 1997-12-01 | M98: 0
A99: 1998-01-01 | M99: 0
A100: 1998-02-01 | M100: 0
A101: 1998-03-01 | M101: 0
A102: 1998-04-01 | M102: 0
A103: 1998-05-01 | M103: 0
A104: 1998-06-01 | M104: 0
A105: 1998-07-01 | M105: 0
A106: 1998-08-01 | M106: 0
A107: 1998-09-01 | M107: 0
A108: 1998-10-01 | M108: 0
A109: 1998-11-01 | M109: 0
A110: 1998-12-01 | M110: 0
A111: 1999-01-01 | M111: 0
A112: 1999-02-01 | M112: 0
A113: 1999-03-01 | M113: 0
A114: 1999-04-01 | M114: 0
A115: 1999-05-01 | M115: 0
A116: 1999-06-01 | M116: 0
A117: 1999-07-01 | M117: 0
A118: 1999-08-01 | M118: 0
A119: 1999-09-01 | M119: 0
A120: 1999-10-01 | M120: 0
A121: 1999-11-01 | M121: 0
A122: 1999-12-01 | M122: 0
A123: 2000-01-01 | M123: 0
A124: 2000-02-01 | M124: 0
A125: 2000-03-01 | M125: 0
A126: 2000-04-01 | M126: 0
A127: 2000-05-01 | M127: 0
A128: 2000-06-01 | M128: 0
A129: 2000-07-01 | M129: 0
A130: 2000-08-01 | M130: 0
A131: 2000-09-01 | M131: 0
A132: 2000-10-01 | M132: =SUM(B132:L132)*0.000001 -> 0
A133: 2000-11-01 | M133: 0
A134: 2000-12-01 | M134: 0
A135: 2001-01-01 | M135: 0
A136: 2001-02-01 | M136: 0
A137: 2001-03-01 | M137: 0
A138: 2001-04-01 | M138: 0
A139: 2001-05-01 | M139: 0
A140: 2001-06-01 | M140: 0
A141: 2001-07-01 | M141: 0
A142: 2001-08-01 | M142: 0
A143: 2001-09-01 | M143: 0
A144: 2001-10-01 | M144: 0
A145: 2001-11-01 | M145: 0
A146: 2001-12-01 | M146: 0
A147: 2002-01-01 | M147: 0
A148: 2002-02-01 | M148: 0
A149: 2002-03-01 | M149: 0
A150: 2002-04-01 | M150: 0
A151: 2002-05-01 | M151: 0
A152: 2002-06-01 | M152: 0
A153: 2002-07-01 | M153: 0
A154: 2002-08-01 | M154: 0
A155: 2002-09-01 | M155: 0
A156: 2002-10-01 | M156: 0
A157: 2002-11-01 | M157: 0
A158: 2002-12-01 | M158: 0
A159: 2003-01-01 | M159: 0
A160: 2003-02-01 | M160: 0
A161: 2003-03-01 | M161: 0
A162: 2003-04-01 | M162: 0
A163: 2003-05-01 | M163: 0
A164: 2003-06-01 | M164: 0
A165: 2003-07-01 | M165: 0
A166: 2003-08-01 | M166: 0
A167: 2003-09-01 | M167: 0
A168: 2003-10-01 | M168: 0
A169: 2003-11-01 | M169: 0
A170: 2003-12-01 | M170: 0
A171: 2004-01-01 | M171: 0
A172: 2004-02-01 | M172: 0
A173: 2004-03-01 | M173: 0
A174: 2004-04-01 | M174: 0
A175: 2004-05-01 | M175: 0
A176: 2004-06-01 | M176: 0
A177: 2004-07-01 | M177: 0
A178: 2004-08-01 | M178: 0
A179: 2004-09-01 | M179: 0
A180: 2004-10-01 | M180: 0
A181: 2004-11-01 | M181: 0
A182: 2004-12-01 | M182: 0
A183: 2005-01-01 | M183: 0
A184: 2005-02-01 | M184: 0
A185: 2005-03-01 | M185: 0
A186: 2005-04-01 | M186: 0
A187: 2005-05-01 | M187: 0
A188: 2005-06-01 | M188: 0
A189: 2005-07-01 | M189: 0
A190: 2005-08-01 | M190: 0
A191: 2005-09-01 | M191: 0
A192: 2005-10-01 | M192: 0
A193: 2005-11-01 | M193: 0
A194: 2005-12-01 | M194: 0
A195: 2006-01-01 | M195: 0
A196: 2006-02-01 | M196: =SUM(B196:L196)*0.000001 -> 0
A197: 2006-03-01 | M197: 0
A198: 2006-04-01 | M198: 0
A199: 2006-05-01 | M199: 0
A200: 2006-06-01 | M200: 0
... 66 more rows

Sheet E for Groundwater Data
A1: Groundwater Extraction Energy Data | S1: Source: | T1: OCWD
A2: Date | B2: Energy per Month for Groundwater Extraction (KWh) | C2: Energy per Month for Groundwater Extraction (KWh) | D2: Energy per Month for Groundwater Extraction (KWh) | E2: Energy per Month for Groundwater Extraction (KWh) | F2: Energy per Month for Groundwater Extraction (KWh) | G2: Energy per Month for Groundwater Extraction (KWh) | H2: Energy per Month for Groundwater Extraction (KWh) | I2: Energy per Month for Groundwater Extraction (KWh) | J2: Energy per Month for Groundwater Extraction (KWh) | K2: Energy per Month for Groundwater Extraction (KWh) | L2: Energy per Month for Groundwater Extraction (KWh) | M2: Energy per Month for Groundwater Extraction (KWh) | O2: Year | P2: Total Energy per Year for GW Extraction (KWh) | Q2: Water Intensities (KWh/MG)
A3: 1990-01-01 | M3: =SUM(B3:L3) -> 0 | O3: 1990 | P3: =SUM(M3:M14) -> 0 | Q3: =IF('Groundwater Data'!P3=0,0,P3/'Groundwater Data'!P3) -> 0
A4: 1990-02-01 | M4: =SUM(B4:L4) -> 0 | O4: 1991 | P4: =SUM(M15:M26) -> 0 | Q4: =IF('Groundwater Data'!P4=0,0,P4/'Groundwater Data'!P4) -> 0 | S4: Instructions
A5: 1990-03-01 | M5: 0 | O5: 1992 | P5: =SUM(M39:M50) -> 0 | Q5: =IF('Groundwater Data'!P5=0,0,P5/'Groundwater Data'!P5) -> 0 | S5: Step 1: | T5: If available, please enter monthly energy data for all groundwater extraction points in columns B-L., if not available please leave blank. The data will automatically be summed and converted to intensities.
A6: 1990-04-01 | M6: 0 | O6: 1993 | P6: =SUM(M6:M17) -> 0 | Q6: =IF('Groundwater Data'!P6=0,0,P6/'Groundwater Data'!P6) -> 0
A7: 1990-05-01 | M7: 0 | O7: 1994 | P7: =SUM(M51:M62) -> 0 | Q7: =IF('Groundwater Data'!P7=0,0,P7/'Groundwater Data'!P7) -> 0
A8: 1990-06-01 | M8: 0 | O8: 1995 | P8: =SUM(M63:M74) -> 0 | Q8: =IF('Groundwater Data'!P8=0,0,P8/'Groundwater Data'!P8) -> 0
A9: 1990-07-01 | M9: 0 | O9: 1996 | P9: =SUM(M75:M86) -> 0 | Q9: =IF('Groundwater Data'!P9=0,0,P9/'Groundwater Data'!P9) -> 0
A10: 1990-08-01 | M10: 0 | O10: 1997 | P10: =SUM(M87:M98) -> 0 | Q10: =IF('Groundwater Data'!P10=0,0,P10/'Groundwater Data'!P10) -> 0 | S10: Step 2: | T10: If monthly data is not available please enter total annual energy data in column P, if not available please leave blank.
A11: 1990-09-01 | M11: 0 | O11: 1998 | P11: =SUM(M99:M110) -> 0 | Q11: =IF('Groundwater Data'!P11=0,0,P11/'Groundwater Data'!P11) -> 0
A12: 1990-10-01 | M12: 0 | O12: 1999 | P12: =SUM(M111:M122) -> 0 | Q12: =IF('Groundwater Data'!P12=0,0,P12/'Groundwater Data'!P12) -> 0
A13: 1990-11-01 | M13: 0 | O13: 2000 | P13: =SUM(M123:M134) -> 0 | Q13: =IF('Groundwater Data'!P13=0,0,P13/'Groundwater Data'!P13) -> 0
A14: 1990-12-01 | M14: 0 | O14: 2001 | P14: =SUM(M135:M146) -> 0 | Q14: =IF('Groundwater Data'!P14=0,0,P14/'Groundwater Data'!P14) -> 0 | S14: Notes: | T14: If no groundwater extraction data is available, defaults will be used. Source data can be inserted for future reference.
A15: 1991-01-01 | M15: 0 | O15: 2002 | P15: =SUM(M147:M158) -> 0 | Q15: =IF('Groundwater Data'!P15=0,0,P15/'Groundwater Data'!P15) -> 0
A16: 1991-02-01 | M16: 0 | O16: 2003 | P16: =SUM(M159:M170) -> 0 | Q16: =IF('Groundwater Data'!P16=0,0,P16/'Groundwater Data'!P16) -> 0
A17: 1991-03-01 | M17: 0 | O17: 2004 | P17: =SUM(M171:M182) -> 0 | Q17: =IF('Groundwater Data'!P17=0,0,P17/'Groundwater Data'!P17) -> 0
A18: 1991-04-01 | M18: 0 | O18: 2005 | P18: =SUM(M183:M194) -> 0 | Q18: =IF('Groundwater Data'!P18=0,0,P18/'Groundwater Data'!P18) -> 0
A19: 1991-05-01 | M19: 0 | O19: 2006 | P19: =SUM(M191:M202) -> 0 | Q19: =IF('Groundwater Data'!P19=0,0,P19/'Groundwater Data'!P19) -> 0
A20: 1991-06-01 | M20: 0 | O20: 2007 | P20: =SUM(M207:M218) -> 0 | Q20: =IF('Groundwater Data'!P20=0,0,P20/'Groundwater Data'!P20) -> 0
A21: 1991-07-01 | M21: 0 | O21: 2008 | P21: =SUM(M219:M230) -> 0 | Q21: =IF('Groundwater Data'!P21=0,0,P21/'Groundwater Data'!P21) -> 0
A22: 1991-08-01 | M22: 0 | O22: 2009 | P22: =SUM(M231:M242) -> 0 | Q22: =IF('Groundwater Data'!P22=0,0,P22/'Groundwater Data'!P22) -> 0
A23: 1991-09-01 | M23: 0 | O23: 2010 | P23: =SUM(M243:M254) -> 0 | Q23: =IF('Groundwater Data'!P23=0,0,P23/'Groundwater Data'!P23) -> 0
A24: 1991-10-01 | M24: 0 | O24: 2011 | P24: =SUM(M255:M266) -> 14609927 | Q24: =IF('Groundwater Data'!P24=0,0,P24/'Groundwater Data'!P24) -> 0
A25: 1991-11-01 | M25: 0 | O25: 2012 | P25: 0 | Q25: =IF('Groundwater Data'!P25=0,0,P25/'Groundwater Data'!P25) -> 0
A26: 1991-12-01 | M26: 0
A27: 1992-01-01 | M27: 0
A28: 1992-02-01 | M28: 0 | O28: Year | P28: Water Intensities (KWh/MG)
A29: 1992-03-01 | M29: 0 | O29: 1990 | P29: =IF((IFERROR((SUM(Q3:Q12)/(COUNTIF(Q3:Q12,">0"))),0))=0,(IFERROR((SUM(Q3:Q25)/(COUNTIF(Q3:Q25,">0"))),0))) -> 0
A30: 1992-04-01 | M30: 0 | O30: 2000 | P30: =IF((IFERROR((SUM(Q13:Q22)/(COUNTIF(Q13:Q22,">0"))),0))=0,(IFERROR((SUM(Q3:Q25)/(COUNTIF(Q3:Q25,">0"))),0))) -> 0
A31: 1992-05-01 | M31: 0 | O31: 2010 | P31: =IFERROR((SUM(Q23:Q25)/(COUNTIF(Q23:Q25,">0"))),0) -> 0
A32: 1992-06-01 | M32: 0 | O32: 2020 | P32: =IFERROR((SUM(Q23:Q25)/(COUNTIF(Q23:Q25,">0"))),0) -> 0
A33: 1992-07-01 | M33: 0 | O33: 2030 | P33: =IFERROR((SUM(Q23:Q25)/(COUNTIF(Q23:Q25,">0"))),0) -> 0
A34: 1992-08-01 | M34: 0 | O34: 2040 | P34: =IFERROR((SUM(Q23:Q25)/(COUNTIF(Q23:Q25,">0"))),0) -> 0
A35: 1992-09-01 | M35: 0 | O35: 2050 | P35: =IFERROR((SUM(Q23:Q25)/(COUNTIF(Q23:Q25,">0"))),0) -> 0
A36: 1992-10-01 | M36: 0
A37: 1992-11-01 | M37: 0
A38: 1992-12-01 | M38: 0
A39: 1993-01-01 | M39: 0
A40: 1993-02-01 | M40: 0
A41: 1993-03-01 | M41: 0
A42: 1993-04-01 | M42: 0
A43: 1993-05-01 | M43: 0
A44: 1993-06-01 | M44: 0
A45: 1993-07-01 | M45: 0
A46: 1993-08-01 | M46: 0
A47: 1993-09-01 | M47: 0
A48: 1993-10-01 | M48: 0
A49: 1993-11-01 | M49: 0
A50: 1993-12-01 | M50: 0
A51: 1994-01-01 | M51: 0
A52: 1994-02-01 | M52: 0
A53: 1994-03-01 | M53: 0
A54: 1994-04-01 | M54: 0
A55: 1994-05-01 | M55: 0
A56: 1994-06-01 | M56: 0
A57: 1994-07-01 | M57: 0
A58: 1994-08-01 | M58: 0
A59: 1994-09-01 | M59: 0
A60: 1994-10-01 | M60: 0
A61: 1994-11-01 | M61: 0
A62: 1994-12-01 | M62: 0
A63: 1995-01-01 | M63: 0
A64: 1995-02-01 | M64: 0
A65: 1995-03-01 | M65: 0
A66: 1995-04-01 | M66: 0
A67: 1995-05-01 | M67: 0
A68: 1995-06-01 | M68: =SUM(B68:L68) -> 0
A69: 1995-07-01 | M69: 0
A70: 1995-08-01 | M70: 0
A71: 1995-09-01 | M71: 0
A72: 1995-10-01 | M72: 0
A73: 1995-11-01 | M73: 0
A74: 1995-12-01 | M74: 0
A75: 1996-01-01 | M75: 0
A76: 1996-02-01 | M76: 0
A77: 1996-03-01 | M77: 0
A78: 1996-04-01 | M78: 0
A79: 1996-05-01 | M79: 0
A80: 1996-06-01 | M80: 0
A81: 1996-07-01 | M81: 0
A82: 1996-08-01 | M82: 0
A83: 1996-09-01 | M83: 0
A84: 1996-10-01 | M84: 0
A85: 1996-11-01 | M85: 0
A86: 1996-12-01 | M86: 0
A87: 1997-01-01 | M87: 0
A88: 1997-02-01 | M88: 0
A89: 1997-03-01 | M89: 0
A90: 1997-04-01 | M90: 0
A91: 1997-05-01 | M91: 0
A92: 1997-06-01 | M92: 0
A93: 1997-07-01 | M93: 0
A94: 1997-08-01 | M94: 0
A95: 1997-09-01 | M95: 0
A96: 1997-10-01 | M96: 0
A97: 1997-11-01 | M97: 0
A98: 1997-12-01 | M98: 0
A99: 1998-01-01 | M99: 0
A100: 1998-02-01 | M100: 0
A101: 1998-03-01 | M101: 0
A102: 1998-04-01 | M102: 0
A103: 1998-05-01 | M103: 0
A104: 1998-06-01 | M104: 0
A105: 1998-07-01 | M105: 0
A106: 1998-08-01 | M106: 0
A107: 1998-09-01 | M107: 0
A108: 1998-10-01 | M108: 0
A109: 1998-11-01 | M109: 0
A110: 1998-12-01 | M110: 0
A111: 1999-01-01 | M111: 0
A112: 1999-02-01 | M112: 0
A113: 1999-03-01 | M113: 0
A114: 1999-04-01 | M114: 0
A115: 1999-05-01 | M115: 0
A116: 1999-06-01 | M116: 0
A117: 1999-07-01 | M117: 0
A118: 1999-08-01 | M118: 0
A119: 1999-09-01 | M119: 0
A120: 1999-10-01 | M120: 0
A121: 1999-11-01 | M121: 0
A122: 1999-12-01 | M122: 0
A123: 2000-01-01 | M123: 0
A124: 2000-02-01 | M124: 0
A125: 2000-03-01 | M125: 0
A126: 2000-04-01 | M126: 0
A127: 2000-05-01 | M127: 0
A128: 2000-06-01 | M128: 0
A129: 2000-07-01 | M129: 0
A130: 2000-08-01 | M130: 0
A131: 2000-09-01 | M131: 0
A132: 2000-10-01 | M132: =SUM(B132:L132) -> 0
A133: 2000-11-01 | M133: 0
A134: 2000-12-01 | M134: 0
A135: 2001-01-01 | M135: 0
A136: 2001-02-01 | M136: 0
A137: 2001-03-01 | M137: 0
A138: 2001-04-01 | M138: 0
A139: 2001-05-01 | M139: 0
A140: 2001-06-01 | M140: 0
A141: 2001-07-01 | M141: 0
A142: 2001-08-01 | M142: 0
A143: 2001-09-01 | M143: 0
A144: 2001-10-01 | M144: 0
A145: 2001-11-01 | M145: 0
A146: 2001-12-01 | M146: 0
A147: 2002-01-01 | M147: 0
A148: 2002-02-01 | M148: 0
A149: 2002-03-01 | M149: 0
A150: 2002-04-01 | M150: 0
A151: 2002-05-01 | M151: 0
A152: 2002-06-01 | M152: 0
A153: 2002-07-01 | M153: 0
A154: 2002-08-01 | M154: 0
A155: 2002-09-01 | M155: 0
A156: 2002-10-01 | M156: 0
A157: 2002-11-01 | M157: 0
A158: 2002-12-01 | M158: 0
A159: 2003-01-01 | M159: 0
A160: 2003-02-01 | M160: 0
A161: 2003-03-01 | M161: 0
A162: 2003-04-01 | M162: 0
A163: 2003-05-01 | M163: 0
A164: 2003-06-01 | M164: 0
A165: 2003-07-01 | M165: 0
A166: 2003-08-01 | M166: 0
A167: 2003-09-01 | M167: 0
A168: 2003-10-01 | M168: 0
A169: 2003-11-01 | M169: 0
A170: 2003-12-01 | M170: 0
A171: 2004-01-01 | M171: 0
A172: 2004-02-01 | M172: 0
A173: 2004-03-01 | M173: 0
A174: 2004-04-01 | M174: 0
A175: 2004-05-01 | M175: 0
A176: 2004-06-01 | M176: 0
A177: 2004-07-01 | M177: 0
A178: 2004-08-01 | M178: 0
A179: 2004-09-01 | M179: 0
A180: 2004-10-01 | M180: 0
A181: 2004-11-01 | M181: 0
A182: 2004-12-01 | M182: 0
A183: 2005-01-01 | M183: 0
A184: 2005-02-01 | M184: 0
A185: 2005-03-01 | M185: 0
A186: 2005-04-01 | M186: 0
A187: 2005-05-01 | M187: 0
A188: 2005-06-01 | M188: 0
A189: 2005-07-01 | M189: 0
A190: 2005-08-01 | M190: 0
A191: 2005-09-01 | M191: 0
A192: 2005-10-01 | M192: 0
A193: 2005-11-01 | M193: 0
A194: 2005-12-01 | M194: 0
A195: 2006-01-01 | M195: 0
A196: 2006-02-01 | M196: =SUM(B196:L196) -> 0
A197: 2006-03-01 | M197: 0
A198: 2006-04-01 | M198: 0
A199: 2006-05-01 | M199: 0
A200: 2006-06-01 | M200: 0
... 66 more rows

Sheet Default Energy Data
B2: Energy intensities for Groundwater Extraction | H2: California Specific Water Intensities
E3: Groundwater Extraction (kWh/MG) | F3: Water Table Depth (ft) | H3: Water use cycle segments | K3: So Cal (kWh/MG) | L3: No Cal (kWh/MG)
B4: Low Value (default) | E4: 540 | F4: 120 | H4: Supply and Conveyance | K4: 8900 | L4: 150
B5: High Value | E5: 2270 | F5: 500 | H5: Treatment | K5: 100 | L5: 100
B6: Source: | C6: From Energy Down the Drain: The Hidden Costs of California's Water Supply, NRDC and The Pacific Institute, 2004 page 11 | H6: Distribution | K6: 1200 | L6: 1200
H7: Source: | I7: http://www.energy.ca.gov/2005publications/CEC‐700‐2005‐011/CEC‐700‐2005‐011‐SF.PDF, Table 1‐3.Ibid. The distinction between Northern and Southern California is detailed on page 111 of the CEC report.
B8: Energy intensities for Water Conveyance
E9: Local Water (kWh/MG) | F9: Imported Water (kWh/MG) | I9: Energy intensities for Water Distribution
B10: Low Value | E10: 88 | F10: 1900 | L10: Distribution Intensity (kWh/MG)
B11: Median Value | E11: 110 | F11: 3000 | I11: Low Value | L11: 360
B12: High Value | E12: 330 | F12: 5300 | I12: Median Value | L12: 540
B13: Source: | C13: Adapted from Implications of Future Water Supply Sources for Energy Demands, WateReuse ResearchFoundation, 2012. See: http://www.pacinst.org/resources/wesim/report.pdf, Table 4.2. | I13: High Value | L13: 860
I14: Source: | J14: Adapted from Implications of Future Water Supply Sources for Energy Demands, WateReuse Research Foundation, 2012. See: http://www.pacinst.org/resources/wesim/report.pdf, Table 4.8.
B15: Energy intensities for Water Treatment
D16: <1MGD (kWh/MG) | E16: 1-5 MGD (kWh/MG) | F16: 5-20 MGD (kWh/MG) | G16: >20 MGD (kWh/MG) | I16: CO2 Emissions Factor (lbs CO2/MWh) | K16: 2004 | L16: 2005 | M16: 2006 | N16: 2007
B17: Low Value | D17: 620 | E17: 300 | F17: 180 | G17: 120 | I17: Southern California Edison | K17: 678.88 | L17: 665.72 | M17: 641.26 | N17: 630.89
B18: Median Value | D18: 1500 | E18: 750 | F18: 560 | G18: 210 | I18: Source: | J18: Data from the California Climate Action Registry Power/Utility Protocol public reports, http://www.climateregistry.org/CARROT/public/reports.aspx
B19: High Value | D19: 2000 | E19: 1300 | F19: 1100 | G19: 2000
B20: Source: | C20: Adapted from Implications of Future Water Supply Sources for Energy Demands, WateReuse Research Foundation, 2012. See: http://www.pacinst.org/resources/wesim/report.pdf, Table 4.3.
B22: California Grid Average Electricity Emission Factors (lbs/MWh)
B23: Year | C23: CO2 | D23: CH4 | E23: N2O | F23: CO2e
B24: 1990 | C24: 1031.14 | D24: 0.04 | E24: 0.014 | F24: 1036.19
B25: 1991 | C25: 994.03 | D25: 0.037 | E25: 0.013 | F25: 998.72
B26: 1992 | C26: 984.42 | D26: 0.04 | E26: 0.012 | F26: 988.87
B27: 1993 | C27: 1007.26 | D27: 0.037 | E27: 0.013 | F27: 1011.91
B28: 1994 | C28: 1071.19 | D28: 0.04 | E28: 0.013 | F28: 1075.94
B29: 1995 | C29: 929.77 | D29: 0.031 | E29: 0.012 | F29: 934.03
B30: 1996 | C30: 827.65 | D30: 0.029 | E30: 0.011 | F30: 831.57
B31: 1997 | C31: 874.96 | D31: 0.029 | E31: 0.011 | F31: 878.88
B32: 1998 | C32: 941.54 | D32: 0.029 | E32: 0.011 | F32: 945.46
B33: 1999 | C33: 917.6 | D33: 0.031 | E33: 0.011 | F33: 921.56
B34: 2000 | C34: 829.5 | D34: 0.029 | E34: 0.009 | F34: 839.82
B35: 2001 | C35: 1009.75 | D35: 0.033 | E35: 0.011 | F35: 1013.75
B36: 2002 | C36: 865.28 | D36: 0.031 | E36: 0.01 | F36: 868.94
B37: 2003 | C37: 888.41 | D37: 0.031 | E37: 0.011 | F37: 892.37
B38: 2004 | C38: 958.49 | D38: 0.029 | E38: 0.011 | F38: 962.41
B39: 2005 | C39: 948.28 | D39: 0.03 | E39: 0.011 | F39: 952.22
B40: 2006 | C40: 889.75 | D40: 0.031 | E40: 0.009 | F40: 893.11
B41: 2007 | C41: 919.64 | D41: 0.029 | E41: 0.01 | F41: 923.26
B42: Source: | C42: Sources: Calculated from total in‐state and imported electricity emissions divided by total use in MWh. Emissions from California Air Resources Board, Greenhouse Gas Inventory, 1990 – 2004 (November 17, 2007 version), available on line. CO2e calculated using current 100‐yearGlobal Warming Potentials (GWPs)from US EPA.(GWPCO2 = 1, GWCH4 = 21, GWPN2O = 310).
